Workbook

Sheet 入力シート①
C2: 【生態系に配慮した緑化 評価ツール（試行版）】
C3: 入力シート① | E3: 記入日： | F3: =TODAY() -> 2017-03-09
C4: ●事業の概要
C5: 事業者名
C6: 事業名
C7: 事業地
C8: 施設の種類
C9: 緑化完了予定年月
C10: 生態的地域区分
C11: 敷地面積（A) | F11: ㎡
C12: 対象緑地面積（B) | F12: ㎡
C13: 面積割合（B/A） | D13: =IFERROR(D12/D11*100,"") ->  | F13: ％
C14: 評価ユニット数 | F14: ユニット
C15: ●写真
C16: 画像１ （ダブルクリックして下さい） | E16: 画像２ （ダブルクリックして下さい）
C17: ●緑化コンセプトに関する特記事項
C19: ●生態系に配慮した緑化に関する特記事項

Sheet テンプレート (hidden)
C3: 【生態系に配慮した緑化 評価ツール（試行版）】 | I3: 評価ﾕﾆｯﾄTHP | K3: =IFERROR(E8*K10*K26,"") ->  | L3: THP
I4: 最大限配慮THP | K4: =IF(E12="","",6*E8*IF(I12="樹林",10,8)) ->  | L4: THP
C5: 入力シート② | I5: 配慮度 | K5: =IFERROR(K3/K4*100,"") ->  | L5: %
C6: 評価ﾕﾆｯﾄNo. | E6: =RIGHT(CELL("filename",A1),LEN(CELL("filename",A1))-FIND("]",CELL("filename",A1))) -> テンプレート
C7: 緑化ﾀｲﾌﾟ | I7: 記入日 | J7: =入力シート①!F3 -> 2017-03-09 | K7: 生態的地域区分 | L7: =IF(入力シート①!D10="","",入力シート①!D10) -> 
C8: 評価ﾕﾆｯﾄ面積 | F8: ㎡ | I8: 事業名 | J8: =IF(入力シート①!D6="","",入力シート①!D6) -> 
C10: Ⅰ．ランク | K10: =IFERROR(VLOOKUP(VLOOKUP(E12,群落ランク!E$5:L$44,MATCH(L$7,群落ランク!E$4:L$4,0),FALSE),群落ランク!Q$5:R$10,2,FALSE),"") ->  | L10: 点
C12: 選択した 植物群落 | H12: 種別 | I12: =IFERROR(VLOOKUP($E12,群落ランク!$E$5:$G$44,3,FALSE),"") ->  | K12: 在来種比率 5割の対象 | L12: =IFERROR(VLOOKUP($E12,群落ランク!$E$5:$H$44,4,FALSE),"") -> 
C14: 高木 | E14: 主な構成種
E15: 在来種比率 | F15: =IFERROR(IF(L$12="","",IF(L$12="○",I15/K15*100,"－")),"") ->  | G15: ％ | H15: （在来種本数 | J15: 本／総本数 | L15: 本）
C16: 中木 | E16: 主な構成種
E17: 在来種比率 | F17: =IFERROR(IF(L$12="","",IF(L$12="○",I17/K17*100,"－")),"") ->  | G17: ％ | H17: （在来種本数 | J17: 本／総本数 | L17: 本）
C18: 低木 | E18: 主な構成種
E19: 在来種比率 | F19: =IFERROR(IF(L$12="","",IF(L$12="○",I19/K19*100,"－")),"") ->  | G19: ％ | H19: （在来種本数 | J19: 本(㎡)／総本数 | L19: 本(㎡)）
C20: 草本類 | E20: 主な構成種
E21: 在来種比率 | F21: =IFERROR(IF(L$12="","",IF(L$12="○",I21/K21*100,"－")),"") ->  | G21: ％ | H21: （在来種本数 | J21: 本(㎡)／総本数 | L21: 本(㎡)）
C23: 当該植物群落を 選択した理由
C26: Ⅱ．コンディション | K26: =IF(E12="","",SUM(K28,K31,K34,K37,K40,K43,K46,K49,K52,K55)) ->  | L26: 点
C28: =IF(E8="","",IF(E$8>=400,"○","×")) ->  | D28: ①緑化面積を十分に確保する計画 | K28: =IF(C28="","",IF(I12="樹林",IF(C28="○",HLOOKUP(L7,評価項目!D$3:G$13,2,FALSE),0),IF(C28="○",HLOOKUP(L7,評価項目!D$18:G$28,2,FALSE),0))) ->  | L28: 点
D29: ⇒評価ユニットの面積が400㎡以上であるか | J29: 計画の内容が分かる書類 №：
D31: ②既存樹木を保全する計画 | K31: =IF(C31="","",IF(I12="樹林",IF(C31="○",HLOOKUP(L7,評価項目!D$3:G$13,3,FALSE),0),IF(C31="○",HLOOKUP(L7,評価項目!D$18:G$28,3,FALSE),0))) ->  | L31: 点
D32: ⇒既存樹木（高さ1.3mにおける幹周囲1m以上の樹木）を保全する計画をしているか | J32: 計画の内容が分かる書類 №：
D34: ③多階層構造を形成する計画 ※種別「草地、水辺等」は対象外 | K34: =IF(I12="草地、水辺等","－",IF(C34="","",IF(C34="○",HLOOKUP(L7,評価項目!D$3:G$13,4,FALSE),0))) ->  | L34: 点
D35: ⇒階層構造（高木層、中木層、低木層、草本層）が３階層以上であるか | J35: 計画の内容が分かる書類 №：
D37: ④樹林地における草本類を創出する計画 ※種別「草地、水辺等」は対象外 | K37: =IF(I12="草地、水辺等","－",IF(C37="","",IF(C37="○",HLOOKUP(L7,評価項目!D$3:G$13,5,FALSE),0))) ->  | L37: 点
D38: ⇒草本類の植栽もしくは在来種の播種や表土保全の計画をしているか | J38: 計画の内容が分かる書類 №：
D40: ⑤周辺緑地との連続性に配慮する計画 ※評価ユニット１のみ入力 | K40: =IFERROR(評価ユニット一覧表!M8,"") ->  | L40: 点
D41: ⇒緑の連続性評価値が計画前よりも上昇しているか | J41: 緑の連続性評価値算出図面 №：
D43: ⑥コアエリアに配慮する計画 ※評価ユニット１のみ入力 | K43: =IFERROR(評価ユニット一覧表!N8,"") ->  | L43: 点
D44: ⇒事業区域がコアエリアから1キロメートル以内にあるか | J44: ｺｱｴﾘｱからの距離算出図面 №：
D46: ⑦周辺の生きものを呼び寄せる計画 | K46: =IF(C46="","",IF(I12="樹林",IF(C46="○",HLOOKUP(L7,評価項目!D$3:G$13,8,FALSE),0),IF(C46="○",HLOOKUP(L7,評価項目!D$18:G$28,8,FALSE),0))) ->  | L46: 点
D47: ⇒周辺の生きものを呼び寄せる計画をしているか | J47: 計画の内容が分かる書類 №：
D49: ⑧外来種を防除する計画 | K49: =IF(C49="","",IF(I12="樹林",IF(C49="○",HLOOKUP(L7,評価項目!D$3:G$13,9,FALSE),0),IF(C49="○",HLOOKUP(L7,評価項目!D$18:G$28,9,FALSE),0))) ->  | L49: 点
D50: ⇒外来種防除の計画をしているか | J50: 計画の内容が分かる書類 №：
D52: ⑨植栽を適切に管理する計画 | K52: =IF(C52="","",IF(I12="樹林",IF(C52="○",HLOOKUP(L7,評価項目!D$3:G$13,10,FALSE),0),IF(C52="○",HLOOKUP(L7,評価項目!D$18:G$28,10,FALSE),0))) ->  | L52: 点
D53: ⇒生物多様性に配慮した植栽管理の計画をしているか | J53: 計画の内容が分かる書類 №：
D55: ⑩生きものとのふれあいの場として活用する計画 ※評価ユニット１のみ入力 | K55: =IFERROR(評価ユニット一覧表!R8,"") ->  | L55: 点
D56: ⇒事業地内で自然観察会等の生きものとのふれあい体験の計画をしているか | J56: 計画の内容が分かる書類 №：
C58: Ⅲ．当該評価ﾕﾆｯﾄについて、上記以外に特記すべき配慮事項があれば記載してください。
C60: （例：賑わいの演出のため、標榜する群落の構成種以外の園芸品種等も混植する。） （例：既存の緑地を可能な限り保全し、改変を回避できない場合も移植等で在来の植物を活用する。）
J66: ※グレー網掛け部分に入力してください
C69: スダジイ－ヤブコウジ群集
C70: タブノキ－イノデ群集
C71: トベラ－マサキ群集
C72: シラカシ群集 ケヤキ亜群集
C73: シラカシ群集 典型亜群集
C74: アカマツ群落
C75: シラカシ群集 モミ亜群集
C76: モミ－シキミ群集
C77: ケヤキ－イロハモミジ群集
C78: ハンノキ－オニスゲ群集
C79: ムクノキ-エノキ群団
C80: オノエヤナギクラス
C81: カサスゲ群集 他
C82: オギ群集 他
C83: ツルヨシ群集 他
C84: マコモ－ウキヤガラ群集
C85: ヨシ群落
C86: シオクグ群集 他 （塩沼地植生）
C87: ヒルムシロクラス （浮葉植物群落）
C88: ムクノキ－ミズキ群落
C89: コナラ－イイギリ群落
C90: コナラ－クヌギ群集
C91: コナラ－クリ群集
C92: アカマツ－ヤマツツジ群集
C93: スギ・ヒノキ植林
C94: ススキ－アズマネザサ群集
C95: ススキ－チガヤ群落
C96: ヨシ－オオクサキビ群落
C97: 畑地雑草群落
C98: ヨモギ－ユウガギク群集 他 （路傍雑草群落）
C99: オオバコ－カゼクサ群集 他 （踏跡群落）
C100: オオイヌタデ－オオクサキビ群落 他 （埋立地雑草群落）
C101: 水田雑草群落
C102: その他 樹木地
C103: その他 草地
C104: 水田
C105: 畑地
C106: 自然裸地
C107: 水辺
C108: 再生裸地

Sheet 評価ユニット一覧表
BJ1: 上位5ユニットグラフ | BL1: コンディショングラフ | BN1: ランクグラフ
B2: 【生態系に配慮した緑化 評価ツール（試行版）】 | R2: 記入日 | S2: =入力シート①!F3 -> 2017-03-09 | U2: 生態的地域区分 | W2: =IF(入力シート①!D10="","",入力シート①!D10) ->  | Y2: データ数： | Z2: =COUNT(B:B) -> 1 | BJ2: =IF(OFFSET(AB$8,0,0,1,1)="",1,OFFSET(AB$8,0,0,1,1)) -> 1 | BK2: =IF(OFFSET(AC$8,0,0,1,1)="",0,OFFSET(AC$8,0,0,1,1)) -> 0 | BL2: 利 活 用 | BM2: =BH10 ->  | BN2: ２点 | BO2: =SUMIF(OFFSET(H$8,0,0,COUNT(B:B),1),2,OFFSET(G$8,0,0,COUNT(B:B),1))/SUM(OFFSET(G$8,0,0,COUNT(B:B),1))*100 -> 
B3: 評価ユニット一覧表 | R3: 事業名 | S3: =IF(入力シート①!D6="","",入力シート①!D6) ->  | Y3: ⇒非表示 | BJ3: =IF(OFFSET(AB$8,1,0,1,1)="","",OFFSET(AB$8,1,0,1,1)) ->  | BK3: =IF(OFFSET(AC$8,1,0,1,1)="","",OFFSET(AC$8,1,0,1,1)) ->  | BL3: 維持管理 | BM3: =BF10 ->  | BN3: ４点 | BO3: =SUMIF(OFFSET(H$8,0,0,COUNT(B:B),1),4,OFFSET(G$8,0,0,COUNT(B:B),1))/SUM(OFFSET(G$8,0,0,COUNT(B:B),1))*100 -> 
BJ4: =IF(OFFSET(AB$8,2,0,1,1)="","",OFFSET(AB$8,2,0,1,1)) ->  | BK4: =IF(OFFSET(AC$8,2,0,1,1)="","",OFFSET(AC$8,2,0,1,1)) ->  | BL4: 生きもの配慮 | BM4: =BE10 ->  | BN4: ６点 | BO4: =SUMIF(OFFSET(H$8,0,0,COUNT(B:B),1),6,OFFSET(G$8,0,0,COUNT(B:B),1))/SUM(OFFSET(G$8,0,0,COUNT(B:B),1))*100 -> 
B5: 評価 ﾕﾆｯﾄ No. | C5: 緑化 ﾀｲﾌﾟ | D5: 群落名 | E5: 種別 | F5: 在来種 比率5割 の対象 | G5: ﾕﾆｯﾄ 面積 (㎡) | H5: ﾗﾝｸ 点数 | I5: ｺﾝﾃﾞｨｼｮﾝ点数 | T5: 緑の質 | U5: THP | V5: 最大限 配慮 THP | W5: 配慮度 (%) | Y5: THP達成率評価順並び替え | AE5: ｺﾝﾃﾞｨｼｮﾝ項目別緑の質（評価値） | AO5: ｺﾝﾃﾞｨｼｮﾝ項目別緑の質（満点） | AY5: ｺﾝﾃﾞｨｼｮﾝ項目別達成率 | BJ5: =IF(OFFSET(AB$8,3,0,1,1)="","",OFFSET(AB$8,3,0,1,1)) ->  | BK5: =IF(OFFSET(AC$8,3,0,1,1)="","",OFFSET(AC$8,3,0,1,1)) ->  | BL5: ランドスケープ | BM5: =BC10 -> 
I6: 緑の構成 | M6: ﾗﾝﾄﾞｽｹｰﾌﾟ | O6: 生きもの 配慮 | P6: 維持管理 | R6: 利活用 | S6: 計 | Y6: THP 達成率 調整 | Z6: 順位 | AA6: THP 達成率 | AB6: 評価 ﾕﾆｯﾄ No. | AC6: THP 達成率 | AE6: 緑の構成 | AI6: ﾗﾝﾄﾞｽｹｰﾌﾟ | AK6: 生きもの 配慮 | AL6: 維持管理 | AN6: 利活用 | AO6: 緑の構成 | AS6: ﾗﾝﾄﾞｽｹｰﾌﾟ | AU6: 生きもの 配慮 | AV6: 維持管理 | AX6: 利活用 | AY6: 緑の構成 | BC6: ランドスケープ | BE6: 生きもの 配慮 | BF6: 維持管理 | BH6: 利活用 | BJ6: =IF(OFFSET(AB$8,4,0,1,1)="","",OFFSET(AB$8,4,0,1,1)) ->  | BK6: =IF(OFFSET(AC$8,4,0,1,1)="","",OFFSET(AC$8,4,0,1,1)) ->  | BL6: 緑の構成 | BM6: =AY10 -> 
I7: ① | J7: ② | K7: ③ | L7: ④ | M7: ⑤ | N7: ⑥ | O7: ⑦ | P7: ⑧ | Q7: ⑨ | R7: ⑩ | AE7: ① | AF7: ② | AG7: ③ | AH7: ④ | AI7: ⑤ | AJ7: ⑥ | AK7: ⑦ | AL7: ⑧ | AM7: ⑨ | AN7: ⑩ | AO7: ① | AP7: ② | AQ7: ③ | AR7: ④ | AS7: ⑤ | AT7: ⑥ | AU7: ⑦ | AV7: ⑧ | AW7: ⑨ | AX7: ⑩ | AY7: ① | AZ7: ② | BA7: ③ | BB7: ④ | BC7: ⑤ | BD7: ⑥ | BE7: ⑦ | BF7: ⑧ | BG7: ⑨ | BH7: ⑩
B8: =ROW()-7 -> 1 | C8: =IFERROR(IF(INDIRECT(B8&"!E$7")=0,"",INDIRECT(B8&"!E$7")),"") ->  | D8: =IFERROR(IF(INDIRECT(B8&"!E$12")=0,"",INDIRECT(B8&"!E$12")),"") ->  | E8: =IFERROR(VLOOKUP(D8,群落ランク!$E$5:$G$44,3,FALSE),"") ->  | F8: =IFERROR(VLOOKUP(D8,群落ランク!$E$5:$H$44,4,FALSE),"") ->  | G8: =IFERROR(IF(INDIRECT(B8&"!E$8")=0,"",INDIRECT(B8&"!E$8")),"") ->  | H8: =IFERROR(VLOOKUP(VLOOKUP(D8,群落ランク!E$5:L$44,MATCH(入力シート①!D$10,群落ランク!E$4:L$4,0),FALSE),群落ランク!Q$5:R$10,2,FALSE),"") ->  | I8: =IFERROR(IF(INDIRECT(B8&"!K$28")=0,"",INDIRECT(B8&"!K$28")),"") ->  | J8: =IFERROR(IF(INDIRECT(B8&"!K$31")=0,"",INDIRECT(B8&"!K$31")),"") ->  | K8: =IFERROR(IF(INDIRECT(B8&"!K$34")=0,"",INDIRECT(B8&"!K$34")),"") ->  | L8: =IFERROR(IF(INDIRECT(B8&"!K$37")=0,"",INDIRECT(B8&"!K$37")),"") ->  | M8: =IFERROR(IF(INDIRECT(B$8&"!C$40")="","",IF(E8="樹林",IF(INDIRECT(B$8&"!C$40")="○",HLOOKUP(入力シート①!D$10,評価項目!D$3:G$13,6,FALSE),0),IF(INDIRECT(B$8&"!C$40")="○",HLOOKUP(入力シート①!D$10,評価項目!D$18:G$28,6,FALSE),0))),"") ->  | N8: =IFERROR(IF(INDIRECT(B$8&"!C$43")="","",IF(E8="樹林",IF(INDIRECT(B$8&"!C$43")="○",HLOOKUP(入力シート①!D$10,評価項目!D$3:G$13,7,FALSE),0),IF(INDIRECT(B$8&"!C$43")="○",HLOOKUP(入力シート①!D$10,評価項目!D$18:G$28,7,FALSE),0))),"") ->  | O8: =IFERROR(IF(INDIRECT(B8&"!K$46")=0,"",INDIRECT(B8&"!K$46")),"") ->  | P8: =IFERROR(IF(INDIRECT(B8&"!K$49")=0,"",INDIRECT(B8&"!K$49")),"") ->  | Q8: =IFERROR(IF(INDIRECT(B8&"!K$52")=0,"",INDIRECT(B8&"!K$52")),"") ->  | R8: =IFERROR(IF(INDIRECT(B$8&"!C$55")="","",IF(E8="樹林",IF(INDIRECT(B$8&"!C$55")="○",HLOOKUP(入力シート①!D$10,評価項目!D$3:G$13,11,FALSE),0),IF(INDIRECT(B$8&"!C$55")="○",HLOOKUP(入力シート①!D$10,評価項目!D$18:G$28,11,FALSE),0))),"") ->  | S8: =IF(H8="","",SUM(I8:R8)) ->  | T8: =IFERROR(H8*S8,"") ->  | U8: =IFERROR(G8*T8,"") ->  | V8: =IF(D8="","",6*G8*IF(E8="樹林",10,8)) ->  | W8: =IFERROR(U8/V8*100,"") ->  | Y8: =W8-B8/10000000000 ->  | Z8: =B8 -> 1 | AA8: =IFERROR(LARGE(OFFSET(Y$8,0,0,入力シート①!D$14,1),Z8),"") ->  | AB8: =IF(AA8="","",VLOOKUP(AA8,OFFSET(Y$8,0,0,入力シート①!D$14,2),2,FALSE)) ->  | AC8: =IFERROR(VLOOKUP(AB8,OFFSET(B$8,0,0,入力シート①!D$14,22),22,FALSE),"") ->  | AE8: =IFERROR($H8*I8,"") ->  | AF8: =IFERROR($H8*J8,"") ->  | AO8: =IF(D8="","",IFERROR(6*IF($E8="樹林",HLOOKUP(入力シート①!D$10,評価項目!$D$3:$G$13,2,FALSE),HLOOKUP(入力シート①!D$10,評価項目!$D$18:$G$28,2,FALSE)),"")) ->  | AP8: =IF(D8="","",IFERROR(6*IF($E8="樹林",HLOOKUP(入力シート①!D$10,評価項目!$D$3:$G$13,3,FALSE),HLOOKUP(入力シート①!D$10,評価項目!$D$18:$G$28,3,FALSE)),"")) ->  | AQ8: =IF(D8="","",IFERROR(6*IF($E8="樹林",HLOOKUP(入力シート①!D$10,評価項目!$D$3:$G$13,4,FALSE),HLOOKUP(入力シート①!D$10,評価項目!$D$18:$G$28,4,FALSE)),"")) ->  | AR8: =IF(D8="","",IFERROR(6*IF($E8="樹林",HLOOKUP(入力シート①!D$10,評価項目!$D$3:$G$13,5,FALSE),HLOOKUP(入力シート①!D$10,評価項目!$D$18:$G$28,5,FALSE)),"")) ->  | AS8: =IF(D8="","",IFERROR(6*IF($E8="樹林",HLOOKUP(入力シート①!D$10,評価項目!$D$3:$G$13,6,FALSE),HLOOKUP(入力シート①!D$10,評価項目!$D$18:$G$28,6,FALSE)),"")) ->  | AT8: =IF(D8="","",IFERROR(6*IF($E8="樹林",HLOOKUP(入力シート①!D$10,評価項目!$D$3:$G$13,7,FALSE),HLOOKUP(入力シート①!D$10,評価項目!$D$18:$G$28,7,FALSE)),"")) ->  | AU8: =IF(D8="","",IFERROR(6*IF($E8="樹林",HLOOKUP(入力シート①!D$10,評価項目!$D$3:$G$13,8,FALSE),HLOOKUP(入力シート①!D$10,評価項目!$D$18:$G$28,8,FALSE)),"")) ->  | AV8: =IF(D8="","",IFERROR(6*IF($E8="樹林",HLOOKUP(入力シート①!D$10,評価項目!$D$3:$G$13,9,FALSE),HLOOKUP(入力シート①!D$10,評価項目!$D$18:$G$28,9,FALSE)),"")) ->  | AW8: =IF(D8="","",IFERROR(6*IF($E8="樹林",HLOOKUP(入力シート①!D$10,評価項目!$D$3:$G$13,10,FALSE),HLOOKUP(入力シート①!D$10,評価項目!$D$18:$G$28,10,FALSE)),"")) ->  | AX8: =IF(D8="","",IFERROR(6*IF($E8="樹林",HLOOKUP(入力シート①!D$10,評価項目!$D$3:$G$13,11,FALSE),HLOOKUP(入力シート①!D$10,評価項目!$D$18:$G$28,11,FALSE)),"")) ->  | AY8: =IFERROR(AE8/AO8*100,"") ->  | AZ8: =IFERROR(AF8/AP8*100,"") -> 
T9: 計 | U9: =IFERROR(SUM(OFFSET(U$8,0,0,COUNT(B:B),1)),"") -> 0 | V9: =IFERROR(SUM(OFFSET(V$8,0,0,COUNT(B:B),1)),"") -> 0 | W9: =U9/V9*100 ->  | AE9: =SUM(OFFSET(AE$8,0,0,COUNT($B:$B),1)) -> 0 | AF9: 0 | AG9: 0 | AH9: 0 | AI9: 0 | AJ9: 0 | AK9: 0 | AL9: 0 | AM9: 0 | AN9: 0 | AO9: 0 | AP9: 0 | AQ9: 0 | AR9: 0 | AS9: 0 | AT9: 0 | AU9: 0 | AV9: 0 | AW9: 0 | AX9: 0
B10: 注）コンディション項目の凡例 | AE10: =SUM(AE9:AH9) -> 0 | AI10: =SUM(AI9:AJ9) -> 0 | AK10: =AK9 -> 0 | AL10: =SUM(AL9:AM9) -> 0 | AN10: =AN9 -> 0 | AO10: =SUM(AO9:AR9) -> 0 | AS10: =SUM(AS9:AT9) -> 0 | AU10: =AU9 -> 0 | AV10: =SUM(AV9:AW9) -> 0 | AX10: =AX9 -> 0 | AY10: =AE10/AO10*100 ->  | BC10: =AI10/AS10*100 ->  | BE10: =AK10/AU10*100 ->  | BF10: =AL10/AV10*100 ->  | BH10: =AN10/AX10*100 -> 
B11: ①：緑化面積を十分に確保する計画
B12: ②：既存樹木を保全する計画
B13: ③：多階層構造を形成する計画
B14: ④：樹林地における草本類を創出する計画
B15: ⑤：周辺緑地との連続性に配慮する計画
B16: ⑥：コアエリアに配慮する計画
B17: ⑦：周辺の生きものを呼び寄せる計画
B18: ⑧：外来種を防除する計画
B19: ⑨：植栽を適切に管理する計画
B20: ⑩：生きものとのふれあいの場として活用する計画

Sheet 総合評価
C2: 【生態系に配慮した緑化 評価ツール（試行版）】 総合評価結果
C4: Ⅰ．事業の概要 | I4: Ⅱ．外観イメージ
C5: 事 業 者 名 | D5: =IF(入力シート①!D5="","",入力シート①!D5) ->  | I5: 画像1
C6: 事 業 名 | D6: =IF(入力シート①!D6="","",入力シート①!D6) -> 
C7: 事 業 地 | D7: =IF(入力シート①!D7="","",入力シート①!D7) -> 
C8: 施設の種類 | D8: =IF(入力シート①!D8="","",入力シート①!D8) -> 
C9: 緑化完了予定年月 | D9: =IF(入力シート①!D9="","",入力シート①!D9) -> 
C10: 生態的地域区分 | D10: =IF(入力シート①!D10="","",入力シート①!D10) -> 
C11: 敷地面積（A) | D11: =IF(入力シート①!D11="","",入力シート①!D11) ->  | G11: ㎡
C12: 対象緑地面積（B) | D12: =IF(入力シート①!D12="","",入力シート①!D12) ->  | G12: ㎡
C13: 面積割合（B/A） | D13: =IF(入力シート①!D13="","",入力シート①!D13) ->  | G13: ％
C14: 評価ユニット数 | D14: =IF(入力シート①!D14="","",入力シート①!D14) ->  | G14: ﾕﾆｯﾄ
C15: Ⅲ．評価結果（事業地全体）
C16: Ⅲ-Ⅰ．評価結果概要 | I16: Ⅲ-Ⅱ．評価ユニット別配慮度（上位５ユニット）
C17: 総THP | D17: =評価ユニット一覧表!U9 -> 0 | G17: THP
C18: 配慮度 | D18: =IFERROR(D17/評価ユニット一覧表!V9*100,"") ->  | G18: ％
D19: =IFERROR(IF(評価ユニット一覧表!W9>0,"★","☆"),"☆") -> ☆ | E19: =IFERROR(IF(評価ユニット一覧表!W9>=20,"★","☆"),"☆") -> ☆ | F19: =IFERROR(IF(評価ユニット一覧表!W9>=40,"★","☆"),"☆") -> ☆ | G19: =IFERROR(IF(評価ユニット一覧表!W9>=60,"★","☆"),"☆") -> ☆ | H19: =IFERROR(IF(AND(評価ユニット一覧表!W9>=80,評価ユニット一覧表!AY10>=40,評価ユニット一覧表!BC10>=40,評価ユニット一覧表!BE10>=40,評価ユニット一覧表!BF10>=40,評価ユニット一覧表!BH10>=40),"★","☆"),"☆") -> ☆
C20: Ⅲ-Ⅲ．ランク別面積割合 | I20: Ⅲ-Ⅳ．コンディション項目別達成状況
C22: Ⅴ．緑化コンセプトに関する特記事項
C23: =IF(入力シート①!C18="","",入力シート①!C18) -> 
C24: Ⅵ．生態系に配慮した緑化に関する特記事項
C25: =IF(入力シート①!C20="","",入力シート①!C20) -> 
C26: =IF(入力シート①!F2="","",入力シート①!F2) ->  | I26: これは「生態系に配慮した緑化 評価ツール（試行版）」による自己評価結果です。

Sheet 「緑の連続性評価値」の基準値検索
C3: 「緑の連続性評価値」の基準値検索
C4: ～使い方～
C5: ・事業地が位置する地点の『緯度』、『経度』（いずれも10進数）を上表に入力してください。
C6: ・東京都現存植生図（H19）に基づく「緑の連続性評価値」の基準値が表示されます。
C8: 緯度 | D8: 経度 | E8: 「緑の連続性評価値」の基準値
E9: =IF(OR(C9="",D9=""),"",VLOOKUP(MIN(連続性ポテンシャル!$E$2:$E$44595),連続性ポテンシャル!$E$2:$F$44595,2,FALSE)) -> 

Sheet 連続性ポテンシャル (hidden)
A1: 生態的地域 | B1: 区市町村 | C1: X座標 | D1: Y座標 | E1: 距離計算 | F1: 連続性点数
A2: 奥多摩 | B2: 西多摩郡奥多摩町 | C2: 139.0133921 | D2: 35.8973916 | E2: =((C2-「緑の連続性評価値」の基準値検索!D$9)^2+(D2-「緑の連続性評価値」の基準値検索!C$9)^2)^(1/2) -> 143.5734861 | F2: 5
A3: 奥多摩 | B3: 西多摩郡奥多摩町 | C3: 139.0156075 | D3: 35.8974067 | E3: =((C3-「緑の連続性評価値」の基準値検索!D$9)^2+(D3-「緑の連続性評価値」の基準値検索!C$9)^2)^(1/2) -> 143.5756349 | F3: 5
A4: 奥多摩 | B4: 西多摩郡奥多摩町 | C4: 139.0178228 | D4: 35.89742176 | E4: =((C4-「緑の連続性評価値」の基準値検索!D$9)^2+(D4-「緑の連続性評価値」の基準値検索!C$9)^2)^(1/2) -> 143.5777836 | F4: 5
A5: 奥多摩 | B5: 西多摩郡奥多摩町 | C5: 139.0200381 | D5: 35.89743679 | E5: =((C5-「緑の連続性評価値」の基準値検索!D$9)^2+(D5-「緑の連続性評価値」の基準値検索!C$9)^2)^(1/2) -> 143.5799323 | F5: 4
A6: 奥多摩 | B6: 西多摩郡奥多摩町 | C6: 139.0089802 | D6: 35.89555877 | E6: =((C6-「緑の連続性評価値」の基準値検索!D$9)^2+(D6-「緑の連続性評価値」の基準値検索!C$9)^2)^(1/2) -> 143.5687561 | F6: 4
A7: 奥多摩 | B7: 西多摩郡奥多摩町 | C7: 139.0111955 | D7: 35.89557396 | E7: =((C7-「緑の連続性評価値」の基準値検索!D$9)^2+(D7-「緑の連続性評価値」の基準値検索!C$9)^2)^(1/2) -> 143.5709048 | F7: 5
A8: 奥多摩 | B8: 西多摩郡奥多摩町 | C8: 139.0134107 | D8: 35.8955891 | E8: =((C8-「緑の連続性評価値」の基準値検索!D$9)^2+(D8-「緑の連続性評価値」の基準値検索!C$9)^2)^(1/2) -> 143.5730534 | F8: 6
A9: 奥多摩 | B9: 西多摩郡奥多摩町 | C9: 139.015626 | D9: 35.89560421 | E9: =((C9-「緑の連続性評価値」の基準値検索!D$9)^2+(D9-「緑の連続性評価値」の基準値検索!C$9)^2)^(1/2) -> 143.5752022 | F9: 6
A10: 奥多摩 | B10: 西多摩郡奥多摩町 | C10: 139.0178413 | D10: 35.89561927 | E10: =((C10-「緑の連続性評価値」の基準値検索!D$9)^2+(D10-「緑の連続性評価値」の基準値検索!C$9)^2)^(1/2) -> 143.5773509 | F10: 6
A11: 奥多摩 | B11: 西多摩郡奥多摩町 | C11: 139.0200565 | D11: 35.89563429 | E11: =((C11-「緑の連続性評価値」の基準値検索!D$9)^2+(D11-「緑の連続性評価値」の基準値検索!C$9)^2)^(1/2) -> 143.5794995 | F11: 6
A12: 奥多摩 | B12: 西多摩郡奥多摩町 | C12: 139.0222718 | D12: 35.89564927 | E12: =((C12-「緑の連続性評価値」の基準値検索!D$9)^2+(D12-「緑の連続性評価値」の基準値検索!C$9)^2)^(1/2) -> 143.5816482 | F12: 6
A13: 奥多摩 | B13: 西多摩郡奥多摩町 | C13: 139.0244871 | D13: 35.89566421 | E13: =((C13-「緑の連続性評価値」の基準値検索!D$9)^2+(D13-「緑の連続性評価値」の基準値検索!C$9)^2)^(1/2) -> 143.5837969 | F13: 5
A14: 奥多摩 | B14: 西多摩郡奥多摩町 | C14: 139.0089989 | D14: 35.89375628 | E14: =((C14-「緑の連続性評価値」の基準値検索!D$9)^2+(D14-「緑の連続性評価値」の基準値検索!C$9)^2)^(1/2) -> 143.5683235 | F14: 6
A15: 奥多摩 | B15: 西多摩郡奥多摩町 | C15: 139.0112141 | D15: 35.89377146 | E15: =((C15-「緑の連続性評価値」の基準値検索!D$9)^2+(D15-「緑の連続性評価値」の基準値検索!C$9)^2)^(1/2) -> 143.5704722 | F15: 6
A16: 奥多摩 | B16: 西多摩郡奥多摩町 | C16: 139.0134293 | D16: 35.89378661 | E16: =((C16-「緑の連続性評価値」の基準値検索!D$9)^2+(D16-「緑の連続性評価値」の基準値検索!C$9)^2)^(1/2) -> 143.5726208 | F16: 6
A17: 奥多摩 | B17: 西多摩郡奥多摩町 | C17: 139.0156445 | D17: 35.89380171 | E17: =((C17-「緑の連続性評価値」の基準値検索!D$9)^2+(D17-「緑の連続性評価値」の基準値検索!C$9)^2)^(1/2) -> 143.5747694 | F17: 7
A18: 奥多摩 | B18: 西多摩郡奥多摩町 | C18: 139.0178597 | D18: 35.89381677 | E18: =((C18-「緑の連続性評価値」の基準値検索!D$9)^2+(D18-「緑の連続性評価値」の基準値検索!C$9)^2)^(1/2) -> 143.5769181 | F18: 7
A19: 奥多摩 | B19: 西多摩郡奥多摩町 | C19: 139.020075 | D19: 35.89383179 | E19: =((C19-「緑の連続性評価値」の基準値検索!D$9)^2+(D19-「緑の連続性評価値」の基準値検索!C$9)^2)^(1/2) -> 143.5790668 | F19: 7
A20: 奥多摩 | B20: 西多摩郡奥多摩町 | C20: 139.0222902 | D20: 35.89384677 | E20: =((C20-「緑の連続性評価値」の基準値検索!D$9)^2+(D20-「緑の連続性評価値」の基準値検索!C$9)^2)^(1/2) -> 143.5812154 | F20: 7
A21: 奥多摩 | B21: 西多摩郡奥多摩町 | C21: 139.0245054 | D21: 35.89386171 | E21: =((C21-「緑の連続性評価値」の基準値検索!D$9)^2+(D21-「緑の連続性評価値」の基準値検索!C$9)^2)^(1/2) -> 143.583364 | F21: 6
A22: 奥多摩 | B22: 西多摩郡奥多摩町 | C22: 139.0267206 | D22: 35.89387661 | E22: =((C22-「緑の連続性評価値」の基準値検索!D$9)^2+(D22-「緑の連続性評価値」の基準値検索!C$9)^2)^(1/2) -> 143.5855126 | F22: 6
A23: 奥多摩 | B23: 西多摩郡奥多摩町 | C23: 139.0068024 | D23: 35.89193856 | E23: =((C23-「緑の連続性評価値」の基準値検索!D$9)^2+(D23-「緑の連続性評価値」の基準値検索!C$9)^2)^(1/2) -> 143.5657423 | F23: 5
A24: 奥多摩 | B24: 西多摩郡奥多摩町 | C24: 139.0090176 | D24: 35.89195379 | E24: =((C24-「緑の連続性評価値」の基準値検索!D$9)^2+(D24-「緑の連続性評価値」の基準値検索!C$9)^2)^(1/2) -> 143.567891 | F24: 6
A25: 奥多摩 | B25: 西多摩郡奥多摩町 | C25: 139.0112327 | D25: 35.89196897 | E25: =((C25-「緑の連続性評価値」の基準値検索!D$9)^2+(D25-「緑の連続性評価値」の基準値検索!C$9)^2)^(1/2) -> 143.5700395 | F25: 7
A26: 奥多摩 | B26: 西多摩郡奥多摩町 | C26: 139.0134479 | D26: 35.89198411 | E26: =((C26-「緑の連続性評価値」の基準値検索!D$9)^2+(D26-「緑の連続性評価値」の基準値検索!C$9)^2)^(1/2) -> 143.5721882 | F26: 7
A27: 奥多摩 | B27: 西多摩郡奥多摩町 | C27: 139.0156631 | D27: 35.89199921 | E27: =((C27-「緑の連続性評価値」の基準値検索!D$9)^2+(D27-「緑の連続性評価値」の基準値検索!C$9)^2)^(1/2) -> 143.5743368 | F27: 7
A28: 奥多摩 | B28: 西多摩郡奥多摩町 | C28: 139.0178782 | D28: 35.89201428 | E28: =((C28-「緑の連続性評価値」の基準値検索!D$9)^2+(D28-「緑の連続性評価値」の基準値検索!C$9)^2)^(1/2) -> 143.5764854 | F28: 7
A29: 奥多摩 | B29: 西多摩郡奥多摩町 | C29: 139.0200934 | D29: 35.8920293 | E29: =((C29-「緑の連続性評価値」の基準値検索!D$9)^2+(D29-「緑の連続性評価値」の基準値検索!C$9)^2)^(1/2) -> 143.578634 | F29: 7
A30: 奥多摩 | B30: 西多摩郡奥多摩町 | C30: 139.0223086 | D30: 35.89204428 | E30: =((C30-「緑の連続性評価値」の基準値検索!D$9)^2+(D30-「緑の連続性評価値」の基準値検索!C$9)^2)^(1/2) -> 143.5807826 | F30: 7
A31: 奥多摩 | B31: 西多摩郡奥多摩町 | C31: 139.0245237 | D31: 35.89205921 | E31: =((C31-「緑の連続性評価値」の基準値検索!D$9)^2+(D31-「緑の連続性評価値」の基準値検索!C$9)^2)^(1/2) -> 143.5829311 | F31: 7
A32: 奥多摩 | B32: 西多摩郡奥多摩町 | C32: 139.0267389 | D32: 35.89207411 | E32: =((C32-「緑の連続性評価値」の基準値検索!D$9)^2+(D32-「緑の連続性評価値」の基準値検索!C$9)^2)^(1/2) -> 143.5850797 | F32: 7
A33: 奥多摩 | B33: 西多摩郡奥多摩町 | C33: 139.0289541 | D33: 35.89208897 | E33: =((C33-「緑の連続性評価値」の基準値検索!D$9)^2+(D33-「緑の連続性評価値」の基準値検索!C$9)^2)^(1/2) -> 143.5872283 | F33: 6
A34: 奥多摩 | B34: 西多摩郡奥多摩町 | C34: 139.0311693 | D34: 35.89210379 | E34: =((C34-「緑の連続性評価値」の基準値検索!D$9)^2+(D34-「緑の連続性評価値」の基準値検索!C$9)^2)^(1/2) -> 143.5893769 | F34: 4
A35: 奥多摩 | B35: 西多摩郡奥多摩町 | C35: 139.0068211 | D35: 35.89013607 | E35: =((C35-「緑の連続性評価値」の基準値検索!D$9)^2+(D35-「緑の連続性評価値」の基準値検索!C$9)^2)^(1/2) -> 143.5653098 | F35: 5
A36: 奥多摩 | B36: 西多摩郡奥多摩町 | C36: 139.0090363 | D36: 35.89015129 | E36: =((C36-「緑の連続性評価値」の基準値検索!D$9)^2+(D36-「緑の連続性評価値」の基準値検索!C$9)^2)^(1/2) -> 143.5674585 | F36: 7
A37: 奥多摩 | B37: 西多摩郡奥多摩町 | C37: 139.0112514 | D37: 35.89016647 | E37: =((C37-「緑の連続性評価値」の基準値検索!D$9)^2+(D37-「緑の連続性評価値」の基準値検索!C$9)^2)^(1/2) -> 143.569607 | F37: 7
A38: 奥多摩 | B38: 西多摩郡奥多摩町 | C38: 139.0134665 | D38: 35.89018162 | E38: =((C38-「緑の連続性評価値」の基準値検索!D$9)^2+(D38-「緑の連続性評価値」の基準値検索!C$9)^2)^(1/2) -> 143.5717556 | F38: 8
A39: 奥多摩 | B39: 西多摩郡奥多摩町 | C39: 139.0156816 | D39: 35.89019672 | E39: =((C39-「緑の連続性評価値」の基準値検索!D$9)^2+(D39-「緑の連続性評価値」の基準値検索!C$9)^2)^(1/2) -> 143.5739041 | F39: 8
A40: 奥多摩 | B40: 西多摩郡奥多摩町 | C40: 139.0178967 | D40: 35.89021178 | E40: =((C40-「緑の連続性評価値」の基準値検索!D$9)^2+(D40-「緑の連続性評価値」の基準値検索!C$9)^2)^(1/2) -> 143.5760527 | F40: 8
A41: 奥多摩 | B41: 西多摩郡奥多摩町 | C41: 139.0201118 | D41: 35.8902268 | E41: =((C41-「緑の連続性評価値」の基準値検索!D$9)^2+(D41-「緑の連続性評価値」の基準値検索!C$9)^2)^(1/2) -> 143.5782012 | F41: 8
A42: 奥多摩 | B42: 西多摩郡奥多摩町 | C42: 139.022327 | D42: 35.89024178 | E42: =((C42-「緑の連続性評価値」の基準値検索!D$9)^2+(D42-「緑の連続性評価値」の基準値検索!C$9)^2)^(1/2) -> 143.5803498 | F42: 8
A43: 奥多摩 | B43: 西多摩郡奥多摩町 | C43: 139.0245421 | D43: 35.89025671 | E43: =((C43-「緑の連続性評価値」の基準値検索!D$9)^2+(D43-「緑の連続性評価値」の基準値検索!C$9)^2)^(1/2) -> 143.5824984 | F43: 8
A44: 奥多摩 | B44: 西多摩郡奥多摩町 | C44: 139.0267572 | D44: 35.89027161 | E44: =((C44-「緑の連続性評価値」の基準値検索!D$9)^2+(D44-「緑の連続性評価値」の基準値検索!C$9)^2)^(1/2) -> 143.5846469 | F44: 7
A45: 奥多摩 | B45: 西多摩郡奥多摩町 | C45: 139.0289723 | D45: 35.89028647 | E45: =((C45-「緑の連続性評価値」の基準値検索!D$9)^2+(D45-「緑の連続性評価値」の基準値検索!C$9)^2)^(1/2) -> 143.5867954 | F45: 7
A46: 奥多摩 | B46: 西多摩郡奥多摩町 | C46: 139.0311875 | D46: 35.89030128 | E46: =((C46-「緑の連続性評価値」の基準値検索!D$9)^2+(D46-「緑の連続性評価値」の基準値検索!C$9)^2)^(1/2) -> 143.5889439 | F46: 7
A47: 奥多摩 | B47: 西多摩郡奥多摩町 | C47: 139.0334026 | D47: 35.89031606 | E47: =((C47-「緑の連続性評価値」の基準値検索!D$9)^2+(D47-「緑の連続性評価値」の基準値検索!C$9)^2)^(1/2) -> 143.5910924 | F47: 6
A48: 奥多摩 | B48: 西多摩郡奥多摩町 | C48: 139.0068399 | D48: 35.88833358 | E48: =((C48-「緑の連続性評価値」の基準値検索!D$9)^2+(D48-「緑の連続性評価値」の基準値検索!C$9)^2)^(1/2) -> 143.5648774 | F48: 7
A49: 奥多摩 | B49: 西多摩郡奥多摩町 | C49: 139.0090549 | D49: 35.8883488 | E49: =((C49-「緑の連続性評価値」の基準値検索!D$9)^2+(D49-「緑の連続性評価値」の基準値検索!C$9)^2)^(1/2) -> 143.5670259 | F49: 7
A50: 奥多摩 | B50: 西多摩郡奥多摩町 | C50: 139.01127 | D50: 35.88836398 | E50: =((C50-「緑の連続性評価値」の基準値検索!D$9)^2+(D50-「緑の連続性評価値」の基準値検索!C$9)^2)^(1/2) -> 143.5691745 | F50: 8
A51: 奥多摩 | B51: 西多摩郡奥多摩町 | C51: 139.0134851 | D51: 35.88837912 | E51: =((C51-「緑の連続性評価値」の基準値検索!D$9)^2+(D51-「緑の連続性評価値」の基準値検索!C$9)^2)^(1/2) -> 143.571323 | F51: 8
A52: 奥多摩 | B52: 西多摩郡奥多摩町 | C52: 139.0157001 | D52: 35.88839422 | E52: =((C52-「緑の連続性評価値」の基準値検索!D$9)^2+(D52-「緑の連続性評価値」の基準値検索!C$9)^2)^(1/2) -> 143.5734715 | F52: 8
A53: 奥多摩 | B53: 西多摩郡奥多摩町 | C53: 139.0179152 | D53: 35.88840928 | E53: =((C53-「緑の連続性評価値」の基準値検索!D$9)^2+(D53-「緑の連続性評価値」の基準値検索!C$9)^2)^(1/2) -> 143.57562 | F53: 8
A54: 奥多摩 | B54: 西多摩郡奥多摩町 | C54: 139.0201303 | D54: 35.8884243 | E54: =((C54-「緑の連続性評価値」の基準値検索!D$9)^2+(D54-「緑の連続性評価値」の基準値検索!C$9)^2)^(1/2) -> 143.5777686 | F54: 8
A55: 奥多摩 | B55: 西多摩郡奥多摩町 | C55: 139.0223453 | D55: 35.88843928 | E55: =((C55-「緑の連続性評価値」の基準値検索!D$9)^2+(D55-「緑の連続性評価値」の基準値検索!C$9)^2)^(1/2) -> 143.579917 | F55: 8
A56: 奥多摩 | B56: 西多摩郡奥多摩町 | C56: 139.0245604 | D56: 35.88845421 | E56: =((C56-「緑の連続性評価値」の基準値検索!D$9)^2+(D56-「緑の連続性評価値」の基準値検索!C$9)^2)^(1/2) -> 143.5820655 | F56: 8
A57: 奥多摩 | B57: 西多摩郡奥多摩町 | C57: 139.0267755 | D57: 35.88846911 | E57: =((C57-「緑の連続性評価値」の基準値検索!D$9)^2+(D57-「緑の連続性評価値」の基準値検索!C$9)^2)^(1/2) -> 143.584214 | F57: 8
A58: 奥多摩 | B58: 西多摩郡奥多摩町 | C58: 139.0289906 | D58: 35.88848396 | E58: =((C58-「緑の連続性評価値」の基準値検索!D$9)^2+(D58-「緑の連続性評価値」の基準値検索!C$9)^2)^(1/2) -> 143.5863625 | F58: 7
A59: 奥多摩 | B59: 西多摩郡奥多摩町 | C59: 139.0312056 | D59: 35.88849878 | E59: =((C59-「緑の連続性評価値」の基準値検索!D$9)^2+(D59-「緑の連続性評価値」の基準値検索!C$9)^2)^(1/2) -> 143.5885109 | F59: 7
A60: 奥多摩 | B60: 西多摩郡奥多摩町 | C60: 139.0334207 | D60: 35.88851355 | E60: =((C60-「緑の連続性評価値」の基準値検索!D$9)^2+(D60-「緑の連続性評価値」の基準値検索!C$9)^2)^(1/2) -> 143.5906594 | F60: 7
A61: 奥多摩 | B61: 西多摩郡奥多摩町 | C61: 139.0356358 | D61: 35.88852828 | E61: =((C61-「緑の連続性評価値」の基準値検索!D$9)^2+(D61-「緑の連続性評価値」の基準値検索!C$9)^2)^(1/2) -> 143.5928079 | F61: 6
A62: 奥多摩 | B62: 西多摩郡奥多摩町 | C62: 139.0378509 | D62: 35.88854298 | E62: =((C62-「緑の連続性評価値」の基準値検索!D$9)^2+(D62-「緑の連続性評価値」の基準値検索!C$9)^2)^(1/2) -> 143.5949564 | F62: 5
A63: 奥多摩 | B63: 西多摩郡奥多摩町 | C63: 139.0046436 | D63: 35.88651582 | E63: =((C63-「緑の連続性評価値」の基準値検索!D$9)^2+(D63-「緑の連続性評価値」の基準値検索!C$9)^2)^(1/2) -> 143.5622964 | F63: 6
A64: 奥多摩 | B64: 西多摩郡奥多摩町 | C64: 139.0068586 | D64: 35.88653108 | E64: =((C64-「緑の連続性評価値」の基準値検索!D$9)^2+(D64-「緑の連続性評価値」の基準値検索!C$9)^2)^(1/2) -> 143.5644449 | F64: 7
A65: 奥多摩 | B65: 西多摩郡奥多摩町 | C65: 139.0090736 | D65: 35.8865463 | E65: =((C65-「緑の連続性評価値」の基準値検索!D$9)^2+(D65-「緑の連続性評価値」の基準値検索!C$9)^2)^(1/2) -> 143.5665934 | F65: 8
A66: 奥多摩 | B66: 西多摩郡奥多摩町 | C66: 139.0112886 | D66: 35.88656148 | E66: =((C66-「緑の連続性評価値」の基準値検索!D$9)^2+(D66-「緑の連続性評価値」の基準値検索!C$9)^2)^(1/2) -> 143.5687419 | F66: 8
A67: 奥多摩 | B67: 西多摩郡奥多摩町 | C67: 139.0135036 | D67: 35.88657662 | E67: =((C67-「緑の連続性評価値」の基準値検索!D$9)^2+(D67-「緑の連続性評価値」の基準値検索!C$9)^2)^(1/2) -> 143.5708904 | F67: 8
A68: 奥多摩 | B68: 西多摩郡奥多摩町 | C68: 139.0157187 | D68: 35.88659172 | E68: =((C68-「緑の連続性評価値」の基準値検索!D$9)^2+(D68-「緑の連続性評価値」の基準値検索!C$9)^2)^(1/2) -> 143.5730389 | F68: 9
A69: 奥多摩 | B69: 西多摩郡奥多摩町 | C69: 139.0179337 | D69: 35.88660678 | E69: =((C69-「緑の連続性評価値」の基準値検索!D$9)^2+(D69-「緑の連続性評価値」の基準値検索!C$9)^2)^(1/2) -> 143.5751874 | F69: 9
A70: 奥多摩 | B70: 西多摩郡奥多摩町 | C70: 139.0201487 | D70: 35.8866218 | E70: =((C70-「緑の連続性評価値」の基準値検索!D$9)^2+(D70-「緑の連続性評価値」の基準値検索!C$9)^2)^(1/2) -> 143.5773358 | F70: 9
A71: 奥多摩 | B71: 西多摩郡奥多摩町 | C71: 139.0223637 | D71: 35.88663678 | E71: =((C71-「緑の連続性評価値」の基準値検索!D$9)^2+(D71-「緑の連続性評価値」の基準値検索!C$9)^2)^(1/2) -> 143.5794843 | F71: 9
A72: 奥多摩 | B72: 西多摩郡奥多摩町 | C72: 139.0245787 | D72: 35.88665171 | E72: =((C72-「緑の連続性評価値」の基準値検索!D$9)^2+(D72-「緑の連続性評価値」の基準値検索!C$9)^2)^(1/2) -> 143.5816327 | F72: 8
A73: 奥多摩 | B73: 西多摩郡奥多摩町 | C73: 139.0267938 | D73: 35.88666661 | E73: =((C73-「緑の連続性評価値」の基準値検索!D$9)^2+(D73-「緑の連続性評価値」の基準値検索!C$9)^2)^(1/2) -> 143.5837812 | F73: 8
A74: 奥多摩 | B74: 西多摩郡奥多摩町 | C74: 139.0290088 | D74: 35.88668146 | E74: =((C74-「緑の連続性評価値」の基準値検索!D$9)^2+(D74-「緑の連続性評価値」の基準値検索!C$9)^2)^(1/2) -> 143.5859297 | F74: 8
A75: 奥多摩 | B75: 西多摩郡奥多摩町 | C75: 139.0312238 | D75: 35.88669627 | E75: =((C75-「緑の連続性評価値」の基準値検索!D$9)^2+(D75-「緑の連続性評価値」の基準値検索!C$9)^2)^(1/2) -> 143.5880781 | F75: 8
A76: 奥多摩 | B76: 西多摩郡奥多摩町 | C76: 139.0334388 | D76: 35.88671105 | E76: =((C76-「緑の連続性評価値」の基準値検索!D$9)^2+(D76-「緑の連続性評価値」の基準値検索!C$9)^2)^(1/2) -> 143.5902265 | F76: 7
A77: 奥多摩 | B77: 西多摩郡奥多摩町 | C77: 139.0356539 | D77: 35.88672578 | E77: =((C77-「緑の連続性評価値」の基準値検索!D$9)^2+(D77-「緑の連続性評価値」の基準値検索!C$9)^2)^(1/2) -> 143.5923749 | F77: 7
A78: 奥多摩 | B78: 西多摩郡奥多摩町 | C78: 139.0378689 | D78: 35.88674047 | E78: =((C78-「緑の連続性評価値」の基準値検索!D$9)^2+(D78-「緑の連続性評価値」の基準値検索!C$9)^2)^(1/2) -> 143.5945233 | F78: 6
A79: 奥多摩 | B79: 西多摩郡奥多摩町 | C79: 139.0024474 | D79: 35.88469802 | E79: =((C79-「緑の連続性評価値」の基準値検索!D$9)^2+(D79-「緑の連続性評価値」の基準値検索!C$9)^2)^(1/2) -> 143.5597156 | F79: 7
A80: 奥多摩 | B80: 西多摩郡奥多摩町 | C80: 139.0046624 | D80: 35.88471333 | E80: =((C80-「緑の連続性評価値」の基準値検索!D$9)^2+(D80-「緑の連続性評価値」の基準値検索!C$9)^2)^(1/2) -> 143.5618641 | F80: 7
A81: 奥多摩 | B81: 西多摩郡奥多摩町 | C81: 139.0068773 | D81: 35.88472859 | E81: =((C81-「緑の連続性評価値」の基準値検索!D$9)^2+(D81-「緑の連続性評価値」の基準値検索!C$9)^2)^(1/2) -> 143.5640125 | F81: 8
A82: 奥多摩 | B82: 西多摩郡奥多摩町 | C82: 139.0090923 | D82: 35.88474381 | E82: =((C82-「緑の連続性評価値」の基準値検索!D$9)^2+(D82-「緑の連続性評価値」の基準値検索!C$9)^2)^(1/2) -> 143.566161 | F82: 8
A83: 奥多摩 | B83: 西多摩郡奥多摩町 | C83: 139.0113073 | D83: 35.88475899 | E83: =((C83-「緑の連続性評価値」の基準値検索!D$9)^2+(D83-「緑の連続性評価値」の基準値検索!C$9)^2)^(1/2) -> 143.5683095 | F83: 8
A84: 奥多摩 | B84: 西多摩郡奥多摩町 | C84: 139.0135222 | D84: 35.88477413 | E84: =((C84-「緑の連続性評価値」の基準値検索!D$9)^2+(D84-「緑の連続性評価値」の基準値検索!C$9)^2)^(1/2) -> 143.5704579 | F84: 9
A85: 奥多摩 | B85: 西多摩郡奥多摩町 | C85: 139.0157372 | D85: 35.88478922 | E85: =((C85-「緑の連続性評価値」の基準値検索!D$9)^2+(D85-「緑の連続性評価値」の基準値検索!C$9)^2)^(1/2) -> 143.5726063 | F85: 9
A86: 奥多摩 | B86: 西多摩郡奥多摩町 | C86: 139.0179522 | D86: 35.88480428 | E86: =((C86-「緑の連続性評価値」の基準値検索!D$9)^2+(D86-「緑の連続性評価値」の基準値検索!C$9)^2)^(1/2) -> 143.5747548 | F86: 9
A87: 奥多摩 | B87: 西多摩郡奥多摩町 | C87: 139.0201671 | D87: 35.8848193 | E87: =((C87-「緑の連続性評価値」の基準値検索!D$9)^2+(D87-「緑の連続性評価値」の基準値検索!C$9)^2)^(1/2) -> 143.5769031 | F87: 9
A88: 奥多摩 | B88: 西多摩郡奥多摩町 | C88: 139.0223821 | D88: 35.88483427 | E88: =((C88-「緑の連続性評価値」の基準値検索!D$9)^2+(D88-「緑の連続性評価値」の基準値検索!C$9)^2)^(1/2) -> 143.5790516 | F88: 9
A89: 奥多摩 | B89: 西多摩郡奥多摩町 | C89: 139.0245971 | D89: 35.88484921 | E89: =((C89-「緑の連続性評価値」の基準値検索!D$9)^2+(D89-「緑の連続性評価値」の基準値検索!C$9)^2)^(1/2) -> 143.5812 | F89: 9
A90: 奥多摩 | B90: 西多摩郡奥多摩町 | C90: 139.026812 | D90: 35.8848641 | E90: =((C90-「緑の連続性評価値」の基準値検索!D$9)^2+(D90-「緑の連続性評価値」の基準値検索!C$9)^2)^(1/2) -> 143.5833484 | F90: 9
A91: 奥多摩 | B91: 西多摩郡奥多摩町 | C91: 139.029027 | D91: 35.88487896 | E91: =((C91-「緑の連続性評価値」の基準値検索!D$9)^2+(D91-「緑の連続性評価値」の基準値検索!C$9)^2)^(1/2) -> 143.5854968 | F91: 8
A92: 奥多摩 | B92: 西多摩郡奥多摩町 | C92: 139.031242 | D92: 35.88489377 | E92: =((C92-「緑の連続性評価値」の基準値検索!D$9)^2+(D92-「緑の連続性評価値」の基準値検索!C$9)^2)^(1/2) -> 143.5876452 | F92: 8
A93: 奥多摩 | B93: 西多摩郡奥多摩町 | C93: 139.033457 | D93: 35.88490854 | E93: =((C93-「緑の連続性評価値」の基準値検索!D$9)^2+(D93-「緑の連続性評価値」の基準値検索!C$9)^2)^(1/2) -> 143.5897936 | F93: 8
A94: 奥多摩 | B94: 西多摩郡奥多摩町 | C94: 139.035672 | D94: 35.88492327 | E94: =((C94-「緑の連続性評価値」の基準値検索!D$9)^2+(D94-「緑の連続性評価値」の基準値検索!C$9)^2)^(1/2) -> 143.591942 | F94: 7
A95: 奥多摩 | B95: 西多摩郡奥多摩町 | C95: 139.0378869 | D95: 35.88493796 | E95: =((C95-「緑の連続性評価値」の基準値検索!D$9)^2+(D95-「緑の連続性評価値」の基準値検索!C$9)^2)^(1/2) -> 143.5940903 | F95: 7
A96: 奥多摩 | B96: 西多摩郡奥多摩町 | C96: 139.0401019 | D96: 35.88495261 | E96: =((C96-「緑の連続性評価値」の基準値検索!D$9)^2+(D96-「緑の連続性評価値」の基準値検索!C$9)^2)^(1/2) -> 143.5962387 | F96: 7
A97: 奥多摩 | B97: 西多摩郡奥多摩町 | C97: 139.0423169 | D97: 35.88496722 | E97: =((C97-「緑の連続性評価値」の基準値検索!D$9)^2+(D97-「緑の連続性評価値」の基準値検索!C$9)^2)^(1/2) -> 143.598387 | F97: 6
A98: 奥多摩 | B98: 西多摩郡奥多摩町 | C98: 138.9758875 | D98: 35.88270873 | E98: =((C98-「緑の連続性評価値」の基準値検索!D$9)^2+(D98-「緑の連続性評価値」の基準値検索!C$9)^2)^(1/2) -> 143.5335016 | F98: 5
A99: 奥多摩 | B99: 西多摩郡奥多摩町 | C99: 138.9781024 | D99: 35.88272452 | E99: =((C99-「緑の連続性評価値」の基準値検索!D$9)^2+(D99-「緑の連続性評価値」の基準値検索!C$9)^2)^(1/2) -> 143.5356502 | F99: 6
A100: 奥多摩 | B100: 西多摩郡奥多摩町 | C100: 138.9803173 | D100: 35.88274027 | E100: =((C100-「緑の連続性評価値」の基準値検索!D$9)^2+(D100-「緑の連続性評価値」の基準値検索!C$9)^2)^(1/2) -> 143.5377987 | F100: 6
A101: 奥多摩 | B101: 西多摩郡奥多摩町 | C101: 138.9825322 | D101: 35.88275598 | E101: =((C101-「緑の連続性評価値」の基準値検索!D$9)^2+(D101-「緑の連続性評価値」の基準値検索!C$9)^2)^(1/2) -> 143.5399472 | F101: 5
A102: 奥多摩 | B102: 西多摩郡奥多摩町 | C102: 138.9936066 | D102: 35.88283392 | E102: =((C102-「緑の連続性評価値」の基準値検索!D$9)^2+(D102-「緑の連続性評価値」の基準値検索!C$9)^2)^(1/2) -> 143.5506895 | F102: 5
A103: 奥多摩 | B103: 西多摩郡奥多摩町 | C103: 138.9958215 | D103: 35.88284938 | E103: =((C103-「緑の連続性評価値」の基準値検索!D$9)^2+(D103-「緑の連続性評価値」の基準値検索!C$9)^2)^(1/2) -> 143.5528379 | F103: 6
A104: 奥多摩 | B104: 西多摩郡奥多摩町 | C104: 138.9980364 | D104: 35.88286481 | E104: =((C104-「緑の連続性評価値」の基準値検索!D$9)^2+(D104-「緑の連続性評価値」の基準値検索!C$9)^2)^(1/2) -> 143.5549864 | F104: 7
A105: 奥多摩 | B105: 西多摩郡奥多摩町 | C105: 139.0002513 | D105: 35.88288019 | E105: =((C105-「緑の連続性評価値」の基準値検索!D$9)^2+(D105-「緑の連続性評価値」の基準値検索!C$9)^2)^(1/2) -> 143.5571348 | F105: 7
A106: 奥多摩 | B106: 西多摩郡奥多摩町 | C106: 139.0024663 | D106: 35.88289553 | E106: =((C106-「緑の連続性評価値」の基準値検索!D$9)^2+(D106-「緑の連続性評価値」の基準値検索!C$9)^2)^(1/2) -> 143.5592833 | F106: 7
A107: 奥多摩 | B107: 西多摩郡奥多摩町 | C107: 139.0046812 | D107: 35.88291083 | E107: =((C107-「緑の連続性評価値」の基準値検索!D$9)^2+(D107-「緑の連続性評価値」の基準値検索!C$9)^2)^(1/2) -> 143.5614317 | F107: 8
A108: 奥多摩 | B108: 西多摩郡奥多摩町 | C108: 139.0068961 | D108: 35.88292609 | E108: =((C108-「緑の連続性評価値」の基準値検索!D$9)^2+(D108-「緑の連続性評価値」の基準値検索!C$9)^2)^(1/2) -> 143.5635802 | F108: 8
A109: 奥多摩 | B109: 西多摩郡奥多摩町 | C109: 139.009111 | D109: 35.88294131 | E109: =((C109-「緑の連続性評価値」の基準値検索!D$9)^2+(D109-「緑の連続性評価値」の基準値検索!C$9)^2)^(1/2) -> 143.5657286 | F109: 8
A110: 奥多摩 | B110: 西多摩郡奥多摩町 | C110: 139.0113259 | D110: 35.88295649 | E110: =((C110-「緑の連続性評価値」の基準値検索!D$9)^2+(D110-「緑の連続性評価値」の基準値検索!C$9)^2)^(1/2) -> 143.567877 | F110: 9
A111: 奥多摩 | B111: 西多摩郡奥多摩町 | C111: 139.0135408 | D111: 35.88297163 | E111: =((C111-「緑の連続性評価値」の基準値検索!D$9)^2+(D111-「緑の連続性評価値」の基準値検索!C$9)^2)^(1/2) -> 143.5700253 | F111: 9
A112: 奥多摩 | B112: 西多摩郡奥多摩町 | C112: 139.0157557 | D112: 35.88298673 | E112: =((C112-「緑の連続性評価値」の基準値検索!D$9)^2+(D112-「緑の連続性評価値」の基準値検索!C$9)^2)^(1/2) -> 143.5721737 | F112: 9
A113: 奥多摩 | B113: 西多摩郡奥多摩町 | C113: 139.0179706 | D113: 35.88300178 | E113: =((C113-「緑の連続性評価値」の基準値検索!D$9)^2+(D113-「緑の連続性評価値」の基準値検索!C$9)^2)^(1/2) -> 143.5743221 | F113: 9
A114: 奥多摩 | B114: 西多摩郡奥多摩町 | C114: 139.0201856 | D114: 35.8830168 | E114: =((C114-「緑の連続性評価値」の基準値検索!D$9)^2+(D114-「緑の連続性評価値」の基準値検索!C$9)^2)^(1/2) -> 143.5764706 | F114: 9
A115: 奥多摩 | B115: 西多摩郡奥多摩町 | C115: 139.0224005 | D115: 35.88303177 | E115: =((C115-「緑の連続性評価値」の基準値検索!D$9)^2+(D115-「緑の連続性評価値」の基準値検索!C$9)^2)^(1/2) -> 143.5786189 | F115: 9
A116: 奥多摩 | B116: 西多摩郡奥多摩町 | C116: 139.0246154 | D116: 35.88304671 | E116: =((C116-「緑の連続性評価値」の基準値検索!D$9)^2+(D116-「緑の連続性評価値」の基準値検索!C$9)^2)^(1/2) -> 143.5807673 | F116: 9
A117: 奥多摩 | B117: 西多摩郡奥多摩町 | C117: 139.0268303 | D117: 35.8830616 | E117: =((C117-「緑の連続性評価値」の基準値検索!D$9)^2+(D117-「緑の連続性評価値」の基準値検索!C$9)^2)^(1/2) -> 143.5829156 | F117: 9
A118: 奥多摩 | B118: 西多摩郡奥多摩町 | C118: 139.0290452 | D118: 35.88307645 | E118: =((C118-「緑の連続性評価値」の基準値検索!D$9)^2+(D118-「緑の連続性評価値」の基準値検索!C$9)^2)^(1/2) -> 143.5850639 | F118: 9
A119: 奥多摩 | B119: 西多摩郡奥多摩町 | C119: 139.0312602 | D119: 35.88309126 | E119: =((C119-「緑の連続性評価値」の基準値検索!D$9)^2+(D119-「緑の連続性評価値」の基準値検索!C$9)^2)^(1/2) -> 143.5872124 | F119: 9
A120: 奥多摩 | B120: 西多摩郡奥多摩町 | C120: 139.0334751 | D120: 35.88310603 | E120: =((C120-「緑の連続性評価値」の基準値検索!D$9)^2+(D120-「緑の連続性評価値」の基準値検索!C$9)^2)^(1/2) -> 143.5893607 | F120: 8
A121: 奥多摩 | B121: 西多摩郡奥多摩町 | C121: 139.03569 | D121: 35.88312076 | E121: =((C121-「緑の連続性評価値」の基準値検索!D$9)^2+(D121-「緑の連続性評価値」の基準値検索!C$9)^2)^(1/2) -> 143.591509 | F121: 8
A122: 奥多摩 | B122: 西多摩郡奥多摩町 | C122: 139.037905 | D122: 35.88313545 | E122: =((C122-「緑の連続性評価値」の基準値検索!D$9)^2+(D122-「緑の連続性評価値」の基準値検索!C$9)^2)^(1/2) -> 143.5936574 | F122: 8
A123: 奥多摩 | B123: 西多摩郡奥多摩町 | C123: 139.0401199 | D123: 35.8831501 | E123: =((C123-「緑の連続性評価値」の基準値検索!D$9)^2+(D123-「緑の連続性評価値」の基準値検索!C$9)^2)^(1/2) -> 143.5958057 | F123: 7
A124: 奥多摩 | B124: 西多摩郡奥多摩町 | C124: 139.0423348 | D124: 35.88316471 | E124: =((C124-「緑の連続性評価値」の基準値検索!D$9)^2+(D124-「緑の連続性評価値」の基準値検索!C$9)^2)^(1/2) -> 143.5979539 | F124: 7
A125: 奥多摩 | B125: 西多摩郡奥多摩町 | C125: 139.0445498 | D125: 35.88317927 | E125: =((C125-「緑の連続性評価値」の基準値検索!D$9)^2+(D125-「緑の連続性評価値」の基準値検索!C$9)^2)^(1/2) -> 143.6001023 | F125: 6
A126: 奥多摩 | B126: 西多摩郡奥多摩町 | C126: 138.9692624 | D126: 35.88085863 | E126: =((C126-「緑の連続性評価値」の基準値検索!D$9)^2+(D126-「緑の連続性評価値」の基準値検索!C$9)^2)^(1/2) -> 143.5266244 | F126: 6
A127: 奥多摩 | B127: 西多摩郡奥多摩町 | C127: 138.9714773 | D127: 35.88087455 | E127: =((C127-「緑の連続性評価値」の基準値検索!D$9)^2+(D127-「緑の連続性評価値」の基準値検索!C$9)^2)^(1/2) -> 143.5287729 | F127: 6
A128: 奥多摩 | B128: 西多摩郡奥多摩町 | C128: 138.9736921 | D128: 35.88089042 | E128: =((C128-「緑の連続性評価値」の基準値検索!D$9)^2+(D128-「緑の連続性評価値」の基準値検索!C$9)^2)^(1/2) -> 143.5309214 | F128: 6
A129: 奥多摩 | B129: 西多摩郡奥多摩町 | C129: 138.9759069 | D129: 35.88090625 | E129: =((C129-「緑の連続性評価値」の基準値検索!D$9)^2+(D129-「緑の連続性評価値」の基準値検索!C$9)^2)^(1/2) -> 143.5330698 | F129: 6
A130: 奥多摩 | B130: 西多摩郡奥多摩町 | C130: 138.9781218 | D130: 35.88092204 | E130: =((C130-「緑の連続性評価値」の基準値検索!D$9)^2+(D130-「緑の連続性評価値」の基準値検索!C$9)^2)^(1/2) -> 143.5352183 | F130: 7
A131: 奥多摩 | B131: 西多摩郡奥多摩町 | C131: 138.9803366 | D131: 35.88093779 | E131: =((C131-「緑の連続性評価値」の基準値検索!D$9)^2+(D131-「緑の連続性評価値」の基準値検索!C$9)^2)^(1/2) -> 143.5373668 | F131: 7
A132: 奥多摩 | B132: 西多摩郡奥多摩町 | C132: 138.9825514 | D132: 35.8809535 | E132: =((C132-「緑の連続性評価値」の基準値検索!D$9)^2+(D132-「緑の連続性評価値」の基準値検索!C$9)^2)^(1/2) -> 143.5395152 | F132: 7
A133: 奥多摩 | B133: 西多摩郡奥多摩町 | C133: 138.9847663 | D133: 35.88096917 | E133: =((C133-「緑の連続性評価値」の基準値検索!D$9)^2+(D133-「緑の連続性評価値」の基準値検索!C$9)^2)^(1/2) -> 143.5416637 | F133: 6
A134: 奥多摩 | B134: 西多摩郡奥多摩町 | C134: 138.9869811 | D134: 35.88098479 | E134: =((C134-「緑の連続性評価値」の基準値検索!D$9)^2+(D134-「緑の連続性評価値」の基準値検索!C$9)^2)^(1/2) -> 143.5438121 | F134: 6
A135: 奥多摩 | B135: 西多摩郡奥多摩町 | C135: 138.989196 | D135: 35.88100038 | E135: =((C135-「緑の連続性評価値」の基準値検索!D$9)^2+(D135-「緑の連続性評価値」の基準値検索!C$9)^2)^(1/2) -> 143.5459606 | F135: 6
A136: 奥多摩 | B136: 西多摩郡奥多摩町 | C136: 138.9914108 | D136: 35.88101592 | E136: =((C136-「緑の連続性評価値」の基準値検索!D$9)^2+(D136-「緑の連続性評価値」の基準値検索!C$9)^2)^(1/2) -> 143.5481089 | F136: 7
A137: 奥多摩 | B137: 西多摩郡奥多摩町 | C137: 138.9936257 | D137: 35.88103143 | E137: =((C137-「緑の連続性評価値」の基準値検索!D$9)^2+(D137-「緑の連続性評価値」の基準値検索!C$9)^2)^(1/2) -> 143.5502574 | F137: 7
A138: 奥多摩 | B138: 西多摩郡奥多摩町 | C138: 138.9958405 | D138: 35.88104689 | E138: =((C138-「緑の連続性評価値」の基準値検索!D$9)^2+(D138-「緑の連続性評価値」の基準値検索!C$9)^2)^(1/2) -> 143.5524058 | F138: 7
A139: 奥多摩 | B139: 西多摩郡奥多摩町 | C139: 138.9980554 | D139: 35.88106231 | E139: =((C139-「緑の連続性評価値」の基準値検索!D$9)^2+(D139-「緑の連続性評価値」の基準値検索!C$9)^2)^(1/2) -> 143.5545542 | F139: 7
A140: 奥多摩 | B140: 西多摩郡奥多摩町 | C140: 139.0002702 | D140: 35.8810777 | E140: =((C140-「緑の連続性評価値」の基準値検索!D$9)^2+(D140-「緑の連続性評価値」の基準値検索!C$9)^2)^(1/2) -> 143.5567026 | F140: 8
A141: 奥多摩 | B141: 西多摩郡奥多摩町 | C141: 139.0024851 | D141: 35.88109304 | E141: =((C141-「緑の連続性評価値」の基準値検索!D$9)^2+(D141-「緑の連続性評価値」の基準値検索!C$9)^2)^(1/2) -> 143.558851 | F141: 8
A142: 奥多摩 | B142: 西多摩郡奥多摩町 | C142: 139.0046999 | D142: 35.88110834 | E142: =((C142-「緑の連続性評価値」の基準値検索!D$9)^2+(D142-「緑の連続性評価値」の基準値検索!C$9)^2)^(1/2) -> 143.5609993 | F142: 8
A143: 奥多摩 | B143: 西多摩郡奥多摩町 | C143: 139.0069148 | D143: 35.8811236 | E143: =((C143-「緑の連続性評価値」の基準値検索!D$9)^2+(D143-「緑の連続性評価値」の基準値検索!C$9)^2)^(1/2) -> 143.5631478 | F143: 8
A144: 奥多摩 | B144: 西多摩郡奥多摩町 | C144: 139.0091297 | D144: 35.88113882 | E144: =((C144-「緑の連続性評価値」の基準値検索!D$9)^2+(D144-「緑の連続性評価値」の基準値検索!C$9)^2)^(1/2) -> 143.5652962 | F144: 9
A145: 奥多摩 | B145: 西多摩郡奥多摩町 | C145: 139.0113445 | D145: 35.88115399 | E145: =((C145-「緑の連続性評価値」の基準値検索!D$9)^2+(D145-「緑の連続性評価値」の基準値検索!C$9)^2)^(1/2) -> 143.5674445 | F145: 9
A146: 奥多摩 | B146: 西多摩郡奥多摩町 | C146: 139.0135594 | D146: 35.88116913 | E146: =((C146-「緑の連続性評価値」の基準値検索!D$9)^2+(D146-「緑の連続性評価値」の基準値検索!C$9)^2)^(1/2) -> 143.5695929 | F146: 9
A147: 奥多摩 | B147: 西多摩郡奥多摩町 | C147: 139.0157742 | D147: 35.88118423 | E147: =((C147-「緑の連続性評価値」の基準値検索!D$9)^2+(D147-「緑の連続性評価値」の基準値検索!C$9)^2)^(1/2) -> 143.5717412 | F147: 9
A148: 奥多摩 | B148: 西多摩郡奥多摩町 | C148: 139.0179891 | D148: 35.88119928 | E148: =((C148-「緑の連続性評価値」の基準値検索!D$9)^2+(D148-「緑の連続性評価値」の基準値検索!C$9)^2)^(1/2) -> 143.5738895 | F148: 9
A149: 奥多摩 | B149: 西多摩郡奥多摩町 | C149: 139.020204 | D149: 35.8812143 | E149: =((C149-「緑の連続性評価値」の基準値検索!D$9)^2+(D149-「緑の連続性評価値」の基準値検索!C$9)^2)^(1/2) -> 143.5760379 | F149: 9
A150: 奥多摩 | B150: 西多摩郡奥多摩町 | C150: 139.0224188 | D150: 35.88122927 | E150: =((C150-「緑の連続性評価値」の基準値検索!D$9)^2+(D150-「緑の連続性評価値」の基準値検索!C$9)^2)^(1/2) -> 143.5781862 | F150: 9
A151: 奥多摩 | B151: 西多摩郡奥多摩町 | C151: 139.0246337 | D151: 35.8812442 | E151: =((C151-「緑の連続性評価値」の基準値検索!D$9)^2+(D151-「緑の連続性評価値」の基準値検索!C$9)^2)^(1/2) -> 143.5803345 | F151: 9
A152: 奥多摩 | B152: 西多摩郡奥多摩町 | C152: 139.0268486 | D152: 35.8812591 | E152: =((C152-「緑の連続性評価値」の基準値検索!D$9)^2+(D152-「緑の連続性評価値」の基準値検索!C$9)^2)^(1/2) -> 143.5824829 | F152: 9
A153: 奥多摩 | B153: 西多摩郡奥多摩町 | C153: 139.0290635 | D153: 35.88127395 | E153: =((C153-「緑の連続性評価値」の基準値検索!D$9)^2+(D153-「緑の連続性評価値」の基準値検索!C$9)^2)^(1/2) -> 143.5846312 | F153: 9
A154: 奥多摩 | B154: 西多摩郡奥多摩町 | C154: 139.0312783 | D154: 35.88128876 | E154: =((C154-「緑の連続性評価値」の基準値検索!D$9)^2+(D154-「緑の連続性評価値」の基準値検索!C$9)^2)^(1/2) -> 143.5867794 | F154: 9
A155: 奥多摩 | B155: 西多摩郡奥多摩町 | C155: 139.0334932 | D155: 35.88130353 | E155: =((C155-「緑の連続性評価値」の基準値検索!D$9)^2+(D155-「緑の連続性評価値」の基準値検索!C$9)^2)^(1/2) -> 143.5889278 | F155: 9
A156: 奥多摩 | B156: 西多摩郡奥多摩町 | C156: 139.0357081 | D156: 35.88131825 | E156: =((C156-「緑の連続性評価値」の基準値検索!D$9)^2+(D156-「緑の連続性評価値」の基準値検索!C$9)^2)^(1/2) -> 143.5910761 | F156: 8
A157: 奥多摩 | B157: 西多摩郡奥多摩町 | C157: 139.037923 | D157: 35.88133294 | E157: =((C157-「緑の連続性評価値」の基準値検索!D$9)^2+(D157-「緑の連続性評価値」の基準値検索!C$9)^2)^(1/2) -> 143.5932244 | F157: 8
A158: 奥多摩 | B158: 西多摩郡奥多摩町 | C158: 139.0401379 | D158: 35.88134759 | E158: =((C158-「緑の連続性評価値」の基準値検索!D$9)^2+(D158-「緑の連続性評価値」の基準値検索!C$9)^2)^(1/2) -> 143.5953727 | F158: 8
A159: 奥多摩 | B159: 西多摩郡奥多摩町 | C159: 139.0423527 | D159: 35.8813622 | E159: =((C159-「緑の連続性評価値」の基準値検索!D$9)^2+(D159-「緑の連続性評価値」の基準値検索!C$9)^2)^(1/2) -> 143.5975209 | F159: 7
A160: 奥多摩 | B160: 西多摩郡奥多摩町 | C160: 139.0445676 | D160: 35.88137676 | E160: =((C160-「緑の連続性評価値」の基準値検索!D$9)^2+(D160-「緑の連続性評価値」の基準値検索!C$9)^2)^(1/2) -> 143.5996691 | F160: 7
A161: 奥多摩 | B161: 西多摩郡奥多摩町 | C161: 139.0467825 | D161: 35.88139129 | E161: =((C161-「緑の連続性評価値」の基準値検索!D$9)^2+(D161-「緑の連続性評価値」の基準値検索!C$9)^2)^(1/2) -> 143.6018174 | F161: 6
A162: 奥多摩 | B162: 西多摩郡奥多摩町 | C162: 138.9670672 | D162: 35.8790402 | E162: =((C162-「緑の連続性評価値」の基準値検索!D$9)^2+(D162-「緑の連続性評価値」の基準値検索!C$9)^2)^(1/2) -> 143.5240443 | F162: 6
A163: 奥多摩 | B163: 西多摩郡奥多摩町 | C163: 138.969282 | D163: 35.87905615 | E163: =((C163-「緑の連続性評価値」の基準値検索!D$9)^2+(D163-「緑の連続性評価値」の基準値検索!C$9)^2)^(1/2) -> 143.5261928 | F163: 6
A164: 奥多摩 | B164: 西多摩郡奥多摩町 | C164: 138.9714968 | D164: 35.87907207 | E164: =((C164-「緑の連続性評価値」の基準値検索!D$9)^2+(D164-「緑の連続性評価値」の基準値検索!C$9)^2)^(1/2) -> 143.5283412 | F164: 7
A165: 奥多摩 | B165: 西多摩郡奥多摩町 | C165: 138.9737116 | D165: 35.87908794 | E165: =((C165-「緑の連続性評価値」の基準値検索!D$9)^2+(D165-「緑の連続性評価値」の基準値検索!C$9)^2)^(1/2) -> 143.5304897 | F165: 7
A166: 奥多摩 | B166: 西多摩郡奥多摩町 | C166: 138.9759264 | D166: 35.87910377 | E166: =((C166-「緑の連続性評価値」の基準値検索!D$9)^2+(D166-「緑の連続性評価値」の基準値検索!C$9)^2)^(1/2) -> 143.5326381 | F166: 7
A167: 奥多摩 | B167: 西多摩郡奥多摩町 | C167: 138.9781411 | D167: 35.87911956 | E167: =((C167-「緑の連続性評価値」の基準値検索!D$9)^2+(D167-「緑の連続性評価値」の基準値検索!C$9)^2)^(1/2) -> 143.5347865 | F167: 7
A168: 奥多摩 | B168: 西多摩郡奥多摩町 | C168: 138.9803559 | D168: 35.87913531 | E168: =((C168-「緑の連続性評価値」の基準値検索!D$9)^2+(D168-「緑の連続性評価値」の基準値検索!C$9)^2)^(1/2) -> 143.5369349 | F168: 7
A169: 奥多摩 | B169: 西多摩郡奥多摩町 | C169: 138.9825707 | D169: 35.87915101 | E169: =((C169-「緑の連続性評価値」の基準値検索!D$9)^2+(D169-「緑の連続性評価値」の基準値検索!C$9)^2)^(1/2) -> 143.5390833 | F169: 7
A170: 奥多摩 | B170: 西多摩郡奥多摩町 | C170: 138.9847855 | D170: 35.87916668 | E170: =((C170-「緑の連続性評価値」の基準値検索!D$9)^2+(D170-「緑の連続性評価値」の基準値検索!C$9)^2)^(1/2) -> 143.5412317 | F170: 7
A171: 奥多摩 | B171: 西多摩郡奥多摩町 | C171: 138.9870003 | D171: 35.87918231 | E171: =((C171-「緑の連続性評価値」の基準値検索!D$9)^2+(D171-「緑の連続性評価値」の基準値検索!C$9)^2)^(1/2) -> 143.5433801 | F171: 7
A172: 奥多摩 | B172: 西多摩郡奥多摩町 | C172: 138.9892151 | D172: 35.87919789 | E172: =((C172-「緑の連続性評価値」の基準値検索!D$9)^2+(D172-「緑の連続性評価値」の基準値検索!C$9)^2)^(1/2) -> 143.5455285 | F172: 7
A173: 奥多摩 | B173: 西多摩郡奥多摩町 | C173: 138.9914299 | D173: 35.87921343 | E173: =((C173-「緑の連続性評価値」の基準値検索!D$9)^2+(D173-「緑の連続性評価値」の基準値検索!C$9)^2)^(1/2) -> 143.5476769 | F173: 7
A174: 奥多摩 | B174: 西多摩郡奥多摩町 | C174: 138.9936447 | D174: 35.87922894 | E174: =((C174-「緑の連続性評価値」の基準値検索!D$9)^2+(D174-「緑の連続性評価値」の基準値検索!C$9)^2)^(1/2) -> 143.5498253 | F174: 7
A175: 奥多摩 | B175: 西多摩郡奥多摩町 | C175: 138.9958595 | D175: 35.8792444 | E175: =((C175-「緑の連続性評価値」の基準値検索!D$9)^2+(D175-「緑の連続性評価値」の基準値検索!C$9)^2)^(1/2) -> 143.5519736 | F175: 8
A176: 奥多摩 | B176: 西多摩郡奥多摩町 | C176: 138.9980743 | D176: 35.87925982 | E176: =((C176-「緑の連続性評価値」の基準値検索!D$9)^2+(D176-「緑の連続性評価値」の基準値検索!C$9)^2)^(1/2) -> 143.554122 | F176: 8
A177: 奥多摩 | B177: 西多摩郡奥多摩町 | C177: 139.0002891 | D177: 35.8792752 | E177: =((C177-「緑の連続性評価値」の基準値検索!D$9)^2+(D177-「緑の連続性評価値」の基準値検索!C$9)^2)^(1/2) -> 143.5562704 | F177: 8
A178: 奥多摩 | B178: 西多摩郡奥多摩町 | C178: 139.0025039 | D178: 35.87929054 | E178: =((C178-「緑の連続性評価値」の基準値検索!D$9)^2+(D178-「緑の連続性評価値」の基準値検索!C$9)^2)^(1/2) -> 143.5584187 | F178: 8
A179: 奥多摩 | B179: 西多摩郡奥多摩町 | C179: 139.0047187 | D179: 35.87930584 | E179: =((C179-「緑の連続性評価値」の基準値検索!D$9)^2+(D179-「緑の連続性評価値」の基準値検索!C$9)^2)^(1/2) -> 143.560567 | F179: 8
A180: 奥多摩 | B180: 西多摩郡奥多摩町 | C180: 139.0069335 | D180: 35.8793211 | E180: =((C180-「緑の連続性評価値」の基準値検索!D$9)^2+(D180-「緑の連続性評価値」の基準値検索!C$9)^2)^(1/2) -> 143.5627154 | F180: 9
A181: 奥多摩 | B181: 西多摩郡奥多摩町 | C181: 139.0091483 | D181: 35.87933632 | E181: =((C181-「緑の連続性評価値」の基準値検索!D$9)^2+(D181-「緑の連続性評価値」の基準値検索!C$9)^2)^(1/2) -> 143.5648637 | F181: 9
A182: 奥多摩 | B182: 西多摩郡奥多摩町 | C182: 139.0113631 | D182: 35.8793515 | E182: =((C182-「緑の連続性評価値」の基準値検索!D$9)^2+(D182-「緑の連続性評価値」の基準値検索!C$9)^2)^(1/2) -> 143.567012 | F182: 9
A183: 奥多摩 | B183: 西多摩郡奥多摩町 | C183: 139.013578 | D183: 35.87936663 | E183: =((C183-「緑の連続性評価値」の基準値検索!D$9)^2+(D183-「緑の連続性評価値」の基準値検索!C$9)^2)^(1/2) -> 143.5691604 | F183: 9
A184: 奥多摩 | B184: 西多摩郡奥多摩町 | C184: 139.0157928 | D184: 35.87938173 | E184: =((C184-「緑の連続性評価値」の基準値検索!D$9)^2+(D184-「緑の連続性評価値」の基準値検索!C$9)^2)^(1/2) -> 143.5713087 | F184: 9
A185: 奥多摩 | B185: 西多摩郡奥多摩町 | C185: 139.0180076 | D185: 35.87939678 | E185: =((C185-「緑の連続性評価値」の基準値検索!D$9)^2+(D185-「緑の連続性評価値」の基準値検索!C$9)^2)^(1/2) -> 143.573457 | F185: 9
A186: 奥多摩 | B186: 西多摩郡奥多摩町 | C186: 139.0202224 | D186: 35.87941179 | E186: =((C186-「緑の連続性評価値」の基準値検索!D$9)^2+(D186-「緑の連続性評価値」の基準値検索!C$9)^2)^(1/2) -> 143.5756053 | F186: 9
A187: 奥多摩 | B187: 西多摩郡奥多摩町 | C187: 139.0224372 | D187: 35.87942677 | E187: =((C187-「緑の連続性評価値」の基準値検索!D$9)^2+(D187-「緑の連続性評価値」の基準値検索!C$9)^2)^(1/2) -> 143.5777535 | F187: 9
A188: 奥多摩 | B188: 西多摩郡奥多摩町 | C188: 139.024652 | D188: 35.8794417 | E188: =((C188-「緑の連続性評価値」の基準値検索!D$9)^2+(D188-「緑の連続性評価値」の基準値検索!C$9)^2)^(1/2) -> 143.5799018 | F188: 9
A189: 奥多摩 | B189: 西多摩郡奥多摩町 | C189: 139.0268669 | D189: 35.87945659 | E189: =((C189-「緑の連続性評価値」の基準値検索!D$9)^2+(D189-「緑の連続性評価値」の基準値検索!C$9)^2)^(1/2) -> 143.5820501 | F189: 9
A190: 奥多摩 | B190: 西多摩郡奥多摩町 | C190: 139.0290817 | D190: 35.87947144 | E190: =((C190-「緑の連続性評価値」の基準値検索!D$9)^2+(D190-「緑の連続性評価値」の基準値検索!C$9)^2)^(1/2) -> 143.5841984 | F190: 9
A191: 奥多摩 | B191: 西多摩郡奥多摩町 | C191: 139.0312965 | D191: 35.87948625 | E191: =((C191-「緑の連続性評価値」の基準値検索!D$9)^2+(D191-「緑の連続性評価値」の基準値検索!C$9)^2)^(1/2) -> 143.5863466 | F191: 9
A192: 奥多摩 | B192: 西多摩郡奥多摩町 | C192: 139.0335113 | D192: 35.87950102 | E192: =((C192-「緑の連続性評価値」の基準値検索!D$9)^2+(D192-「緑の連続性評価値」の基準値検索!C$9)^2)^(1/2) -> 143.5884949 | F192: 9
A193: 奥多摩 | B193: 西多摩郡奥多摩町 | C193: 139.0357262 | D193: 35.87951575 | E193: =((C193-「緑の連続性評価値」の基準値検索!D$9)^2+(D193-「緑の連続性評価値」の基準値検索!C$9)^2)^(1/2) -> 143.5906432 | F193: 9
A194: 奥多摩 | B194: 西多摩郡奥多摩町 | C194: 139.037941 | D194: 35.87953043 | E194: =((C194-「緑の連続性評価値」の基準値検索!D$9)^2+(D194-「緑の連続性評価値」の基準値検索!C$9)^2)^(1/2) -> 143.5927914 | F194: 8
A195: 奥多摩 | B195: 西多摩郡奥多摩町 | C195: 139.0401558 | D195: 35.87954508 | E195: =((C195-「緑の連続性評価値」の基準値検索!D$9)^2+(D195-「緑の連続性評価値」の基準値検索!C$9)^2)^(1/2) -> 143.5949396 | F195: 8
A196: 奥多摩 | B196: 西多摩郡奥多摩町 | C196: 139.0423707 | D196: 35.87955968 | E196: =((C196-「緑の連続性評価値」の基準値検索!D$9)^2+(D196-「緑の連続性評価値」の基準値検索!C$9)^2)^(1/2) -> 143.5970879 | F196: 8
A197: 奥多摩 | B197: 西多摩郡奥多摩町 | C197: 139.0445855 | D197: 35.87957425 | E197: =((C197-「緑の連続性評価値」の基準値検索!D$9)^2+(D197-「緑の連続性評価値」の基準値検索!C$9)^2)^(1/2) -> 143.5992361 | F197: 7
A198: 奥多摩 | B198: 西多摩郡奥多摩町 | C198: 139.0468003 | D198: 35.87958877 | E198: =((C198-「緑の連続性評価値」の基準値検索!D$9)^2+(D198-「緑の連続性評価値」の基準値検索!C$9)^2)^(1/2) -> 143.6013843 | F198: 7
A199: 奥多摩 | B199: 西多摩郡奥多摩町 | C199: 139.0490152 | D199: 35.87960325 | E199: =((C199-「緑の連続性評価値」の基準値検索!D$9)^2+(D199-「緑の連続性評価値」の基準値検索!C$9)^2)^(1/2) -> 143.6035325 | F199: 5
A200: 奥多摩 | B200: 西多摩郡奥多摩町 | C200: 138.9648721 | D200: 35.87722173 | E200: =((C200-「緑の連続性評価値」の基準値検索!D$9)^2+(D200-「緑の連続性評価値」の基準値検索!C$9)^2)^(1/2) -> 143.5214643 | F200: 6
... 4300 more rows

Sheet 群落ランク (hidden)
A2: 区分1* | B2: 区分2** | C2: 区分3 | D2: No. | E2: 植物群落凡例 | G2: 植物群落 分類*** | H2: 在来種比率5割の条件 | I2: 配点
E3: 凡例名 | F3: 凡例に含まれる群集又は群落 | I3: 生態系地域区分****
I4: 奥多摩部 | J4: 多摩東部 | K4: 多摩西部 | L4: 区部
A5: Ⅰ | B5: Ａ | C5: 常緑広葉樹林 | D5: 1 | E5: スダジイ－ヤブコウジ群集 | G5: 樹林 | H5: ○ | I5: （6点） | J5: 6点 | K5: 6点 | L5: 6点 | Q5: 6点 | R5: 6
D6: 2 | E6: タブノキ－イノデ群集 | G6: 樹林 | H6: ○ | I6: （6点） | J6: 6点 | K6: 6点 | L6: 6点 | Q6: （6点） | R6: 6
D7: 3 | E7: トベラ－マサキ群集 | G7: 樹林 | H7: ○ | I7: （6点） | J7: 6点 | K7: 6点 | L7: 6点 | Q7: 4点 | R7: 4
D8: 4 | E8: シラカシ群集 ケヤキ亜群集 | G8: 樹林 | H8: ○ | I8: （6点） | J8: 6点 | K8: 6点 | L8: 6点 | Q8: （4点） | R8: 4
D9: 5 | E9: シラカシ群集 典型亜群集 | G9: 樹林 | H9: ○ | I9: （6点） | J9: 6点 | K9: 6点 | L9: 6点 | Q9: 2点 | R9: 2
D10: 6 | E10: アカマツ群落 | G10: 樹林 | H10: ○ | I10: （6点） | J10: 6点 | K10: 6点 | L10: 6点 | Q10: （2点） | R10: 2
D11: 7 | E11: シラカシ群集 モミ亜群集 | G11: 樹林 | H11: ○ | I11: 6点 | J11: 6点 | K11: 6点 | L11: 6点
D12: 8 | E12: モミ－シキミ群集 | G12: 樹林 | H12: ○ | I12: 6点 | J12: 6点 | K12: 6点 | L12: （6点）
C13: 河畔林および湿生林 | D13: 9 | E13: ケヤキ－イロハモミジ群集 | G13: 樹林 | H13: ○ | I13: 6点 | J13: 6点 | K13: 6点 | L13: （6点）
D14: 10 | E14: ハンノキ－オニスゲ群集 | G14: 樹林 | H14: ○ | I14: 6点 | J14: 6点 | K14: 6点 | L14: 6点
D15: 11 | E15: ムクノキ-エノキ群団 | F15: ハンノキ-ムクノキ群集、ハンノキ-ゴマキ群集 | G15: 樹林 | H15: ○ | I15: 6点 | J15: 6点 | K15: 6点 | L15: 6点
C16: 河辺林 | D16: 12 | E16: オノエヤナギクラス | F16: アカメヤナギ－ジャヤナギ群集、コゴメヤナギ群集、タチヤナギ群集、ユキヤナギ群集 | G16: 樹林 | H16: ○ | I16: 6点 | J16: 6点 | K16: 6点 | L16: 6点
C17: スゲ湿性植生 | D17: 13 | E17: カサスゲ群集 他 | F17: カサスゲ群集、アゼスゲ－チゴザサ群集、ヒメシダ群落 | G17: 草地、水辺等 | H17: × | I17: 6点 | J17: 6点 | K17: 6点 | L17: 6点
C18: 冠水河辺草本植物群落 | D18: 14 | E18: オギ群集 他 | F18: オギ群集、カワラノギク－マルバヤナズソウ群集、カワラサイコ－カワラヨモギ群集 | G18: 草地、水辺等 | H18: × | I18: 6点 | J18: 6点 | K18: 6点 | L18: 6点
D19: 15 | E19: ツルヨシ群集 他 | F19: クサヨシ－セリ群集、コガマ－サンカクイ群集、ツルヨシ群集 | G19: 草地、水辺等 | H19: × | I19: 6点 | J19: 6点 | K19: 6点 | L19: 6点
C20: 抽水植物群落 | D20: 16 | E20: マコモ－ウキヤガラ群集 | G20: 草地、水辺等 | H20: × | I20: 6点 | J20: 6点 | K20: 6点 | L20: 6点
D21: 17 | E21: ヨシ群落 | G21: 草地、水辺等 | H21: × | I21: 6点 | J21: 6点 | K21: 6点 | L21: 6点
C22: 塩沼地植生 | D22: 18 | E22: シオクグ群集 他 （塩沼地植生） | F22: シオクグ群集、コウキヤガラ群集 | G22: 草地、水辺等 | H22: × | I22: （6点） | J22: （6点） | K22: （6点） | L22: 6点
C23: 浮葉植物群落 | D23: 19 | E23: ヒルムシロクラス （浮葉植物群落） | G23: 草地、水辺等 | H23: × | I23: 6点 | J23: 6点 | K23: 6点 | L23: 6点
B24: Ｂ | C24: 夏緑広葉二次林 | D24: 20 | E24: ムクノキ－ミズキ群落 | G24: 樹林 | H24: ○ | I24: 4点 | J24: 6点 | K24: 6点 | L24: 6点
D25: 21 | E25: コナラ－イイギリ群落 | G25: 樹林 | H25: ○ | I25: 4点 | J25: 6点 | K25: 6点 | L25: 6点
D26: 22 | E26: コナラ－クヌギ群集 | G26: 樹林 | H26: ○ | I26: 4点 | J26: 6点 | K26: 6点 | L26: 6点
D27: 23 | E27: コナラ－クリ群集 | G27: 樹林 | H27: ○ | I27: 4点 | J27: 6点 | K27: 6点 | L27: 6点
D28: 24 | E28: アカマツ－ヤマツツジ群集 | G28: 樹林 | H28: ○ | I28: 4点 | J28: 6点 | K28: 6点 | L28: 6点
C29: 植林 | D29: 25 | E29: スギ・ヒノキ植林 | G29: 樹林 | H29: × | I29: 2点 | J29: 2点 | K29: 2点 | L29: 4点
C30: 二次草原および人工草地 | D30: 26 | E30: ススキ－アズマネザサ群集 | G30: 草地、水辺等 | H30: × | I30: 2点 | J30: 2点 | K30: 2点 | L30: 4点
D31: 27 | E31: ススキ－チガヤ群落 | G31: 草地、水辺等 | H31: × | I31: 2点 | J31: 2点 | K31: 2点 | L31: 4点
D32: 28 | E32: ヨシ－オオクサキビ群落 | G32: 草地、水辺等 | H32: × | I32: 2点 | J32: 2点 | K32: 2点 | L32: 4点
C33: 畑地雑草群落 | D33: 29 | E33: 畑地雑草群落 | F33: ニシキソウ－カラスビシャク群集 、ヒメムカシヨモギ－オオアレチノギク群落 | G33: 草地、水辺等 | H33: × | I33: 2点 | J33: 2点 | K33: 2点 | L33: 4点
C34: 多年生路傍植物群落 | D34: 30 | E34: ヨモギ－ユウガギク群集 他 （路傍雑草群落） | F34: ヨモギ－ユウガギク群集、イヌムギ－カモジグサ群落、ハナウド群集、カナムグラ－アキノノゲシ群集、ドクダミ－チヂミザサ群集、イタドリ植分 | G34: 草地、水辺等 | H34: × | I34: 2点 | J34: 2点 | K34: 2点 | L34: 4点
C35: 路上植物群落 | D35: 31 | E35: オオバコ－カゼクサ群集 他 （踏跡群落） | F35: オオバコ－カゼクサ群集、ギョウギシバ群落、ギシギシ－ナガバギシギシ群集、アキメヒシバ－オヒシバ群集 | G35: 草地、水辺等 | H35: × | I35: 2点 | J35: 2点 | K35: 2点 | L35: 2点
C36: 空地・埋立地一年生植物群落 | D36: 32 | E36: オオイヌタデ－オオクサキビ群落 他 （埋立地雑草群落） | F36: メヒシバ－エノコログサ群落、オオイヌタデ－オオクサキビ群落、ウラジロアカザ群落、コセンダングサ植分、センダングサ類優占群落 | G36: 草地、水辺等 | H36: × | I36: 2点 | J36: 2点 | K36: 2点 | L36: 2点
C37: 水田雑草群落 | D37: 33 | E37: 水田雑草群落 | F37: コナギ－ウリカワ群集、ケキツネノボタン－ノミノフスマ群集、ミゾソバ群集、コブナグサ-ヌカキビ群集、コブナグサ-コウガイゼキショウ群集、ヘラオモダカ群落、ヤナギタデ植分 | G37: 草地、水辺等 | H37: × | I37: 2点 | J37: 4点 | K37: 4点 | L37: 6点
A38: Ⅳ | B38: － | C38: その他の土地利用 | D38: 53 | E38: その他 樹木地 | G38: 樹林 | H38: × | I38: 2点 | J38: 2点 | K38: 2点 | L38: 4点
D39: 54 | E39: その他 草地 | G39: 草地、水辺等 | H39: × | I39: 2点 | J39: 2点 | K39: 2点 | L39: 2点
D40: 55 | E40: 水田 | G40: 草地、水辺等 | H40: × | I40: 2点 | J40: 4点 | K40: 4点 | L40: 6点
D41: 56 | E41: 畑地 | G41: 草地、水辺等 | H41: × | I41: 2点 | J41: 2点 | K41: 2点 | L41: 4点
D42: 57 | E42: 自然裸地 | G42: 草地、水辺等 | H42: × | I42: （6点） | J42: （6点） | K42: （6点） | L42: （6点）
D43: 58 | E43: 水辺 | G43: 草地、水辺等 | H43: × | I43: 6点 | J43: 6点 | K43: 6点 | L43: 6点
D44: 59 | E44: 再生裸地 | G44: 草地、水辺等 | H44: × | I44: 2点 | J44: 2点 | K44: 2点 | L44: 2点
A45: * 区分1（クラス域） Ⅰ：ヤブツバキクラス域、Ⅱ：ブナクラス域、Ⅲ：トウヒ－コケモモクラス域、Ⅳ：その他土地利用 ** 区分2 Ａ：自然植生、Ｂ：代償植生
A46: *** ○：在来種比率5割の条件の対象となる植物群落、×：在来種比率5割の条件の対象外となる植物群落
A47: **** 6点：生物多様性保全の観点から群落としての価値が高い、4点：生物多様性保全の観点から群落としての価値は中程度、2点：生物多様性保全の観点から群落の価値は低い
A48: なお、（）は本来的には当該地域に分布しないと考えられるが、万が一創出したした場合には別途協議にてランクを確定させる必要があるものである。

Sheet 評価項目 (hidden)
B1: ｺﾝﾃﾞｨｼｮﾝ評価項目【樹林】
B2: 項 目 | D2: 生態的地域区分
D3: 奥多摩部 | E3: 多摩西部 | F3: 多摩東部 | G3: 区部
B4: 緑の構成 | C4: ①緑地面積の確保 | D4: 1 | E4: 1 | F4: 1 | G4: 1
C5: ②大径木の保全 | D5: 1 | E5: 1 | F5: 1 | G5: 1
C6: ③階層構造の形成 | D6: 1 | E6: 1 | F6: 0.5 | G6: 0.5
C7: ④草本植生の創出・回復 | D7: 1 | E7: 1 | F7: 1 | G7: 1
B8: ﾗﾝﾄﾞｽｹｰﾌﾟ | C8: ⑤生態系ネットワークの形成 | D8: 1 | E8: 1 | F8: 1.5 | G8: 1.5
C9: ⑥コアエリアとのつながり | D9: 1 | E9: 1 | F9: 1.5 | G9: 1.5
B10: 生きもの配慮 | C10: ⑦周辺の生きものへの配慮 | D10: 1 | E10: 1 | F10: 1.5 | G10: 1.5
B11: 維持管理 | C11: ⑧外来種の適正駆除 | D11: 1 | E11: 1 | F11: 0.5 | G11: 0.5
C12: ⑨下層植生の適正管理 | D12: 1 | E12: 1 | F12: 0.5 | G12: 0.5
B13: 利活用 | C13: ⑩生きものとの触れ合いの場の創出 | D13: 1 | E13: 1 | F13: 1 | G13: 1
B14: 合計 | D14: =SUM(D4:D13) -> 10 | E14: =SUM(E4:E13) -> 10 | F14: 10 | G14: 10
B16: ｺﾝﾃﾞｨｼｮﾝ評価項目【草地、水辺等】
B17: 項 目 | D17: 生態的地域区分
D18: 奥多摩 | E18: 多摩西部 | F18: 多摩東部 | G18: 区部
B19: 緑の構成 | C19: ①緑地面積の確保 | D19: 1 | E19: 1 | F19: 1 | G19: 1
C20: ②大径木の保全 | D20: 1 | E20: 1 | F20: 0.5 | G20: 0.5
C21: ③階層構造の形成 | D21: - | E21: - | F21: - | G21: -
C22: ④草本植生の創出・回復 | D22: - | E22: - | F22: - | G22: -
B23: ﾗﾝﾄﾞｽｹｰﾌﾟ | C23: ⑤生態的なネットワークの形成 | D23: 1 | E23: 1 | F23: 1.5 | G23: 1.5
C24: ⑥コアエリアへの配慮 | D24: 1 | E24: 1 | F24: 1.5 | G24: 1.5
B25: 生きもの配慮 | C25: ⑦周辺の生きものへの配慮 | D25: 1 | E25: 1 | F25: 1.5 | G25: 1.5
B26: 維持管理 | C26: ⑧外来種の適正駆除 | D26: 1 | E26: 1 | F26: 0.5 | G26: 0.5
C27: ⑨下層植生の適正管理 | D27: 1 | E27: 1 | F27: 0.5 | G27: 0.5
B28: 利活用 | C28: ⑩生きものとの触れ合いの場の創出 | D28: 1 | E28: 1 | F28: 1 | G28: 1
B29: 合計 | D29: =SUM(D19:D28) -> 8 | E29: =SUM(E19:E28) -> 8 | F29: 8 | G29: 8
